{"text_format":"3","workbook":"xlsx","n_sheets":2,"sheets":["Začiatok","Ročný kalendár"],"not_rendered":{"images":4,"defined_names":14},"read":"whole","date_system":"1900"}

{"sheet":"Začiatok","index":0,"n_rows":7,"n_cols":2,"rows_kept":7}
[null,"INFORMÁCIE O TEJTO ŠABLÓNE"]
[null,"Pomocou tejto šablóny si môžete vytvoriť osobný kalendár pre malý podnik na ktorýkoľvek rok."]
[null,"Zadajte názov spoločnosti a kontaktné údaje a pridajte logo spoločnosti."]
[null,"Vyberte rok a zadajte dôležité dátumy a záležitosti."]
[null,"Poznámka: "]
[null,"Ďalšie pokyny sú v stĺpci A v hárku ROČNÝ KALENDÁR. Tento text je zámerne skrytý. Ak chcete text odstrániť, vyberte stĺpec A a potom stlačte kláves DELETE. "]
[null,"Ak chcete získať ďalšie informácie o tabuľkách, v tabuľke stlačte kláves SHIFT a potom kláves F10, vyberte možnosť TABUĽKA a potom vyberte položku ALTERNATÍVNY TEXT."]

{"sheet":"Ročný kalendár","index":1,"n_rows":55,"n_cols":21,"rows_kept":55,"merged":[[0,2,0,5],[1,1,1,9],[2,2,2,8],[2,10,2,16],[2,21,47,22],[11,2,11,8],[11,10,11,16],[20,2,20,8],[20,10,20,16],[29,2,29,8],[29,10,29,16],[38,2,38,8],[38,10,38,16],[47,2,47,8],[47,10,47,16],[50,20,54,20]]}
["V tomto hárku môžete vytvoriť kalendár pre malý podnik na ľubovoľný rok. V bunkách v tomto stĺpci na nachádzajú užitočné pokyny na používanie tohto hárka. V bunke napravo vyberte číselník na zmenu roka v bunke C1. V bunke U1 je označenie Dôležité dátumy",null,2020,{"$nulls":17},"DÔLEŽITÉ DÁTUMY"]
["V bunke napravo sa nachádza tip.","Pomocou číselníka zmeňte kalendárny rok."]
["V bunkách C3 až Q55 je kalendár na vybratý rok, v bunkách C4 až I10 je kalendár na január a v bunkách K4 až Q10 je kalendár na február. V bunke C3 je označenie Január a v bunke K3 je označenie Február. Do buniek U3 až U42 zadajte dôležité dátumy a záležitosti.",null,"JANUÁR",{"$nulls":7},"FEBRUÁR",{"$nulls":9},"1. JANUÁR"]
["V bunkách C4 až I10 je tabuľka kalendára na január a v bunkách K4 až Q10 je tabuľka kalendára na február. V bunke A12 je ďalší pokyn.",null,"PO","UT","ST","ŠT","PI","SO","NE",null,"PO","UT","ST","ŠT","PI","SO","NE",{"$nulls":3},"NOVÝ ROK"]
[null,null,{"$f":"IF(DAY(JanNed1)=1,\"\",IF(AND(YEAR(JanNed1+1)=KalendárnyRok,MONTH(JanNed1+1)=1),JanNed1+1,\"\"))","v":""},{"$f":"IF(DAY(JanNed1)=1,\"\",IF(AND(YEAR(JanNed1+2)=KalendárnyRok,MONTH(JanNed1+2)=1),JanNed1+2,\"\"))","v":""},{"$f":"IF(DAY(JanNed1)=1,\"\",IF(AND(YEAR(JanNed1+3)=KalendárnyRok,MONTH(JanNed1+3)=1),JanNed1+3,\"\"))","v":"2020-01-01"},{"$f":"IF(DAY(JanNed1)=1,\"\",IF(AND(YEAR(JanNed1+4)=KalendárnyRok,MONTH(JanNed1+4)=1),JanNed1+4,\"\"))","v":"2020-01-02"},{"$f":"IF(DAY(JanNed1)=1,\"\",IF(AND(YEAR(JanNed1+5)=KalendárnyRok,MONTH(JanNed1+5)=1),JanNed1+5,\"\"))","v":"2020-01-03"},{"$f":"IF(DAY(JanNed1)=1,\"\",IF(AND(YEAR(JanNed1+6)=KalendárnyRok,MONTH(JanNed1+6)=1),JanNed1+6,\"\"))","v":"2020-01-04"},{"$f":"IF(DAY(JanNed1)=1,IF(AND(YEAR(JanNed1)=KalendárnyRok,MONTH(JanNed1)=1),JanNed1,\"\"),IF(AND(YEAR(JanNed1+7)=KalendárnyRok,MONTH(JanNed1+7)=1),JanNed1+7,\"\"))","v":"2020-01-05"},null,{"$f":"IF(DAY(FebNed1)=1,\"\",IF(AND(YEAR(FebNed1+1)=KalendárnyRok,MONTH(FebNed1+1)=2),FebNed1+1,\"\"))","v":""},{"$f":"IF(DAY(FebNed1)=1,\"\",IF(AND(YEAR(FebNed1+2)=KalendárnyRok,MONTH(FebNed1+2)=2),FebNed1+2,\"\"))","v":""},{"$f":"IF(DAY(FebNed1)=1,\"\",IF(AND(YEAR(FebNed1+3)=KalendárnyRok,MONTH(FebNed1+3)=2),FebNed1+3,\"\"))","v":""},{"$f":"IF(DAY(FebNed1)=1,\"\",IF(AND(YEAR(FebNed1+4)=KalendárnyRok,MONTH(FebNed1+4)=2),FebNed1+4,\"\"))","v":""},{"$f":"IF(DAY(FebNed1)=1,\"\",IF(AND(YEAR(FebNed1+5)=KalendárnyRok,MONTH(FebNed1+5)=2),FebNed1+5,\"\"))","v":""},{"$f":"IF(DAY(FebNed1)=1,\"\",IF(AND(YEAR(FebNed1+6)=KalendárnyRok,MONTH(FebNed1+6)=2),FebNed1+6,\"\"))","v":"2020-02-01"},{"$f":"IF(DAY(FebNed1)=1,IF(AND(YEAR(FebNed1)=KalendárnyRok,MONTH(FebNed1)=2),FebNed1,\"\"),IF(AND(YEAR(FebNed1+7)=KalendárnyRok,MONTH(FebNed1+7)=2),FebNed1+7,\"\"))","v":"2020-02-02"}]
[null,null,{"$f":"IF(DAY(JanNed1)=1,IF(AND(YEAR(JanNed1+1)=KalendárnyRok,MONTH(JanNed1+1)=1),JanNed1+1,\"\"),IF(AND(YEAR(JanNed1+8)=KalendárnyRok,MONTH(JanNed1+8)=1),JanNed1+8,\"\"))","v":"2020-01-06"},{"$f":"IF(DAY(JanNed1)=1,IF(AND(YEAR(JanNed1+2)=KalendárnyRok,MONTH(JanNed1+2)=1),JanNed1+2,\"\"),IF(AND(YEAR(JanNed1+9)=KalendárnyRok,MONTH(JanNed1+9)=1),JanNed1+9,\"\"))","v":"2020-01-07"},{"$f":"IF(DAY(JanNed1)=1,IF(AND(YEAR(JanNed1+3)=KalendárnyRok,MONTH(JanNed1+3)=1),JanNed1+3,\"\"),IF(AND(YEAR(JanNed1+10)=KalendárnyRok,MONTH(JanNed1+10)=1),JanNed1+10,\"\"))","v":"2020-01-08"},{"$f":"IF(DAY(JanNed1)=1,IF(AND(YEAR(JanNed1+4)=KalendárnyRok,MONTH(JanNed1+4)=1),JanNed1+4,\"\"),IF(AND(YEAR(JanNed1+11)=KalendárnyRok,MONTH(JanNed1+11)=1),JanNed1+11,\"\"))","v":"2020-01-09"},{"$f":"IF(DAY(JanNed1)=1,IF(AND(YEAR(JanNed1+5)=KalendárnyRok,MONTH(JanNed1+5)=1),JanNed1+5,\"\"),IF(AND(YEAR(JanNed1+12)=KalendárnyRok,MONTH(JanNed1+12)=1),JanNed1+12,\"\"))","v":"2020-01-10"},{"$f":"IF(DAY(JanNed1)=1,IF(AND(YEAR(JanNed1+6)=KalendárnyRok,MONTH(JanNed1+6)=1),JanNed1+6,\"\"),IF(AND(YEAR(JanNed1+13)=KalendárnyRok,MONTH(JanNed1+13)=1),JanNed1+13,\"\"))","v":"2020-01-11"},{"$f":"IF(DAY(JanNed1)=1,IF(AND(YEAR(JanNed1+7)=KalendárnyRok,MONTH(JanNed1+7)=1),JanNed1+7,\"\"),IF(AND(YEAR(JanNed1+14)=KalendárnyRok,MONTH(JanNed1+14)=1),JanNed1+14,\"\"))","v":"2020-01-12"},null,{"$f":"IF(DAY(FebNed1)=1,IF(AND(YEAR(FebNed1+1)=KalendárnyRok,MONTH(FebNed1+1)=2),FebNed1+1,\"\"),IF(AND(YEAR(FebNed1+8)=KalendárnyRok,MONTH(FebNed1+8)=2),FebNed1+8,\"\"))","v":"2020-02-03"},{"$f":"IF(DAY(FebNed1)=1,IF(AND(YEAR(FebNed1+2)=KalendárnyRok,MONTH(FebNed1+2)=2),FebNed1+2,\"\"),IF(AND(YEAR(FebNed1+9)=KalendárnyRok,MONTH(FebNed1+9)=2),FebNed1+9,\"\"))","v":"2020-02-04"},{"$f":"IF(DAY(FebNed1)=1,IF(AND(YEAR(FebNed1+3)=KalendárnyRok,MONTH(FebNed1+3)=2),FebNed1+3,\"\"),IF(AND(YEAR(FebNed1+10)=KalendárnyRok,MONTH(FebNed1+10)=2),FebNed1+10,\"\"))","v":"2020-02-05"},{"$f":"IF(DAY(FebNed1)=1,IF(AND(YEAR(FebNed1+4)=KalendárnyRok,MONTH(FebNed1+4)=2),FebNed1+4,\"\"),IF(AND(YEAR(FebNed1+11)=KalendárnyRok,MONTH(FebNed1+11)=2),FebNed1+11,\"\"))","v":"2020-02-06"},{"$f":"IF(DAY(FebNed1)=1,IF(AND(YEAR(FebNed1+5)=KalendárnyRok,MONTH(FebNed1+5)=2),FebNed1+5,\"\"),IF(AND(YEAR(FebNed1+12)=KalendárnyRok,MONTH(FebNed1+12)=2),FebNed1+12,\"\"))","v":"2020-02-07"},{"$f":"IF(DAY(FebNed1)=1,IF(AND(YEAR(FebNed1+6)=KalendárnyRok,MONTH(FebNed1+6)=2),FebNed1+6,\"\"),IF(AND(YEAR(FebNed1+13)=KalendárnyRok,MONTH(FebNed1+13)=2),FebNed1+13,\"\"))","v":"2020-02-08"},{"$f":"IF(DAY(FebNed1)=1,IF(AND(YEAR(FebNed1+7)=KalendárnyRok,MONTH(FebNed1+7)=2),FebNed1+7,\"\"),IF(AND(YEAR(FebNed1+14)=KalendárnyRok,MONTH(FebNed1+14)=2),FebNed1+14,\"\"))","v":"2020-02-09"},{"$nulls":3},"14. FEBRUÁR"]
[null,null,{"$f":"IF(DAY(JanNed1)=1,IF(AND(YEAR(JanNed1+8)=KalendárnyRok,MONTH(JanNed1+8)=1),JanNed1+8,\"\"),IF(AND(YEAR(JanNed1+15)=KalendárnyRok,MONTH(JanNed1+15)=1),JanNed1+15,\"\"))","v":"2020-01-13"},{"$f":"IF(DAY(JanNed1)=1,IF(AND(YEAR(JanNed1+9)=KalendárnyRok,MONTH(JanNed1+9)=1),JanNed1+9,\"\"),IF(AND(YEAR(JanNed1+16)=KalendárnyRok,MONTH(JanNed1+16)=1),JanNed1+16,\"\"))","v":"2020-01-14"},{"$f":"IF(DAY(JanNed1)=1,IF(AND(YEAR(JanNed1+10)=KalendárnyRok,MONTH(JanNed1+10)=1),JanNed1+10,\"\"),IF(AND(YEAR(JanNed1+17)=KalendárnyRok,MONTH(JanNed1+17)=1),JanNed1+17,\"\"))","v":"2020-01-15"},{"$f":"IF(DAY(JanNed1)=1,IF(AND(YEAR(JanNed1+11)=KalendárnyRok,MONTH(JanNed1+11)=1),JanNed1+11,\"\"),IF(AND(YEAR(JanNed1+18)=KalendárnyRok,MONTH(JanNed1+18)=1),JanNed1+18,\"\"))","v":"2020-01-16"},{"$f":"IF(DAY(JanNed1)=1,IF(AND(YEAR(JanNed1+12)=KalendárnyRok,MONTH(JanNed1+12)=1),JanNed1+12,\"\"),IF(AND(YEAR(JanNed1+19)=KalendárnyRok,MONTH(JanNed1+19)=1),JanNed1+19,\"\"))","v":"2020-01-17"},{"$f":"IF(DAY(JanNed1)=1,IF(AND(YEAR(JanNed1+13)=KalendárnyRok,MONTH(JanNed1+13)=1),JanNed1+13,\"\"),IF(AND(YEAR(JanNed1+20)=KalendárnyRok,MONTH(JanNed1+20)=1),JanNed1+20,\"\"))","v":"2020-01-18"},{"$f":"IF(DAY(JanNed1)=1,IF(AND(YEAR(JanNed1+14)=KalendárnyRok,MONTH(JanNed1+14)=1),JanNed1+14,\"\"),IF(AND(YEAR(JanNed1+21)=KalendárnyRok,MONTH(JanNed1+21)=1),JanNed1+21,\"\"))","v":"2020-01-19"},null,{"$f":"IF(DAY(FebNed1)=1,IF(AND(YEAR(FebNed1+8)=KalendárnyRok,MONTH(FebNed1+8)=2),FebNed1+8,\"\"),IF(AND(YEAR(FebNed1+15)=KalendárnyRok,MONTH(FebNed1+15)=2),FebNed1+15,\"\"))","v":"2020-02-10"},{"$f":"IF(DAY(FebNed1)=1,IF(AND(YEAR(FebNed1+9)=KalendárnyRok,MONTH(FebNed1+9)=2),FebNed1+9,\"\"),IF(AND(YEAR(FebNed1+16)=KalendárnyRok,MONTH(FebNed1+16)=2),FebNed1+16,\"\"))","v":"2020-02-11"},{"$f":"IF(DAY(FebNed1)=1,IF(AND(YEAR(FebNed1+10)=KalendárnyRok,MONTH(FebNed1+10)=2),FebNed1+10,\"\"),IF(AND(YEAR(FebNed1+17)=KalendárnyRok,MONTH(FebNed1+17)=2),FebNed1+17,\"\"))","v":"2020-02-12"},{"$f":"IF(DAY(FebNed1)=1,IF(AND(YEAR(FebNed1+11)=KalendárnyRok,MONTH(FebNed1+11)=2),FebNed1+11,\"\"),IF(AND(YEAR(FebNed1+18)=KalendárnyRok,MONTH(FebNed1+18)=2),FebNed1+18,\"\"))","v":"2020-02-13"},{"$f":"IF(DAY(FebNed1)=1,IF(AND(YEAR(FebNed1+12)=KalendárnyRok,MONTH(FebNed1+12)=2),FebNed1+12,\"\"),IF(AND(YEAR(FebNed1+19)=KalendárnyRok,MONTH(FebNed1+19)=2),FebNed1+19,\"\"))","v":"2020-02-14"},{"$f":"IF(DAY(FebNed1)=1,IF(AND(YEAR(FebNed1+13)=KalendárnyRok,MONTH(FebNed1+13)=2),FebNed1+13,\"\"),IF(AND(YEAR(FebNed1+20)=KalendárnyRok,MONTH(FebNed1+20)=2),FebNed1+20,\"\"))","v":"2020-02-15"},{"$f":"IF(DAY(FebNed1)=1,IF(AND(YEAR(FebNed1+14)=KalendárnyRok,MONTH(FebNed1+14)=2),FebNed1+14,\"\"),IF(AND(YEAR(FebNed1+21)=KalendárnyRok,MONTH(FebNed1+21)=2),FebNed1+21,\"\"))","v":"2020-02-16"},{"$nulls":3},"VALENTÍN"]
[null,null,{"$f":"IF(DAY(JanNed1)=1,IF(AND(YEAR(JanNed1+15)=KalendárnyRok,MONTH(JanNed1+15)=1),JanNed1+15,\"\"),IF(AND(YEAR(JanNed1+22)=KalendárnyRok,MONTH(JanNed1+22)=1),JanNed1+22,\"\"))","v":"2020-01-20"},{"$f":"IF(DAY(JanNed1)=1,IF(AND(YEAR(JanNed1+16)=KalendárnyRok,MONTH(JanNed1+16)=1),JanNed1+16,\"\"),IF(AND(YEAR(JanNed1+23)=KalendárnyRok,MONTH(JanNed1+23)=1),JanNed1+23,\"\"))","v":"2020-01-21"},{"$f":"IF(DAY(JanNed1)=1,IF(AND(YEAR(JanNed1+17)=KalendárnyRok,MONTH(JanNed1+17)=1),JanNed1+17,\"\"),IF(AND(YEAR(JanNed1+24)=KalendárnyRok,MONTH(JanNed1+24)=1),JanNed1+24,\"\"))","v":"2020-01-22"},{"$f":"IF(DAY(JanNed1)=1,IF(AND(YEAR(JanNed1+18)=KalendárnyRok,MONTH(JanNed1+18)=1),JanNed1+18,\"\"),IF(AND(YEAR(JanNed1+25)=KalendárnyRok,MONTH(JanNed1+25)=1),JanNed1+25,\"\"))","v":"2020-01-23"},{"$f":"IF(DAY(JanNed1)=1,IF(AND(YEAR(JanNed1+19)=KalendárnyRok,MONTH(JanNed1+19)=1),JanNed1+19,\"\"),IF(AND(YEAR(JanNed1+26)=KalendárnyRok,MONTH(JanNed1+26)=1),JanNed1+26,\"\"))","v":"2020-01-24"},{"$f":"IF(DAY(JanNed1)=1,IF(AND(YEAR(JanNed1+20)=KalendárnyRok,MONTH(JanNed1+20)=1),JanNed1+20,\"\"),IF(AND(YEAR(JanNed1+27)=KalendárnyRok,MONTH(JanNed1+27)=1),JanNed1+27,\"\"))","v":"2020-01-25"},{"$f":"IF(DAY(JanNed1)=1,IF(AND(YEAR(JanNed1+21)=KalendárnyRok,MONTH(JanNed1+21)=1),JanNed1+21,\"\"),IF(AND(YEAR(JanNed1+28)=KalendárnyRok,MONTH(JanNed1+28)=1),JanNed1+28,\"\"))","v":"2020-01-26"},null,{"$f":"IF(DAY(FebNed1)=1,IF(AND(YEAR(FebNed1+15)=KalendárnyRok,MONTH(FebNed1+15)=2),FebNed1+15,\"\"),IF(AND(YEAR(FebNed1+22)=KalendárnyRok,MONTH(FebNed1+22)=2),FebNed1+22,\"\"))","v":"2020-02-17"},{"$f":"IF(DAY(FebNed1)=1,IF(AND(YEAR(FebNed1+16)=KalendárnyRok,MONTH(FebNed1+16)=2),FebNed1+16,\"\"),IF(AND(YEAR(FebNed1+23)=KalendárnyRok,MONTH(FebNed1+23)=2),FebNed1+23,\"\"))","v":"2020-02-18"},{"$f":"IF(DAY(FebNed1)=1,IF(AND(YEAR(FebNed1+17)=KalendárnyRok,MONTH(FebNed1+17)=2),FebNed1+17,\"\"),IF(AND(YEAR(FebNed1+24)=KalendárnyRok,MONTH(FebNed1+24)=2),FebNed1+24,\"\"))","v":"2020-02-19"},{"$f":"IF(DAY(FebNed1)=1,IF(AND(YEAR(FebNed1+18)=KalendárnyRok,MONTH(FebNed1+18)=2),FebNed1+18,\"\"),IF(AND(YEAR(FebNed1+25)=KalendárnyRok,MONTH(FebNed1+25)=2),FebNed1+25,\"\"))","v":"2020-02-20"},{"$f":"IF(DAY(FebNed1)=1,IF(AND(YEAR(FebNed1+19)=KalendárnyRok,MONTH(FebNed1+19)=2),FebNed1+19,\"\"),IF(AND(YEAR(FebNed1+26)=KalendárnyRok,MONTH(FebNed1+26)=2),FebNed1+26,\"\"))","v":"2020-02-21"},{"$f":"IF(DAY(FebNed1)=1,IF(AND(YEAR(FebNed1+20)=KalendárnyRok,MONTH(FebNed1+20)=2),FebNed1+20,\"\"),IF(AND(YEAR(FebNed1+27)=KalendárnyRok,MONTH(FebNed1+27)=2),FebNed1+27,\"\"))","v":"2020-02-22"},{"$f":"IF(DAY(FebNed1)=1,IF(AND(YEAR(FebNed1+21)=KalendárnyRok,MONTH(FebNed1+21)=2),FebNed1+21,\"\"),IF(AND(YEAR(FebNed1+28)=KalendárnyRok,MONTH(FebNed1+28)=2),FebNed1+28,\"\"))","v":"2020-02-23"}]
[null,null,{"$f":"IF(DAY(JanNed1)=1,IF(AND(YEAR(JanNed1+22)=KalendárnyRok,MONTH(JanNed1+22)=1),JanNed1+22,\"\"),IF(AND(YEAR(JanNed1+29)=KalendárnyRok,MONTH(JanNed1+29)=1),JanNed1+29,\"\"))","v":"2020-01-27"},{"$f":"IF(DAY(JanNed1)=1,IF(AND(YEAR(JanNed1+23)=KalendárnyRok,MONTH(JanNed1+23)=1),JanNed1+23,\"\"),IF(AND(YEAR(JanNed1+30)=KalendárnyRok,MONTH(JanNed1+30)=1),JanNed1+30,\"\"))","v":"2020-01-28"},{"$f":"IF(DAY(JanNed1)=1,IF(AND(YEAR(JanNed1+24)=KalendárnyRok,MONTH(JanNed1+24)=1),JanNed1+24,\"\"),IF(AND(YEAR(JanNed1+31)=KalendárnyRok,MONTH(JanNed1+31)=1),JanNed1+31,\"\"))","v":"2020-01-29"},{"$f":"IF(DAY(JanNed1)=1,IF(AND(YEAR(JanNed1+25)=KalendárnyRok,MONTH(JanNed1+25)=1),JanNed1+25,\"\"),IF(AND(YEAR(JanNed1+32)=KalendárnyRok,MONTH(JanNed1+32)=1),JanNed1+32,\"\"))","v":"2020-01-30"},{"$f":"IF(DAY(JanNed1)=1,IF(AND(YEAR(JanNed1+26)=KalendárnyRok,MONTH(JanNed1+26)=1),JanNed1+26,\"\"),IF(AND(YEAR(JanNed1+33)=KalendárnyRok,MONTH(JanNed1+33)=1),JanNed1+33,\"\"))","v":"2020-01-31"},{"$f":"IF(DAY(JanNed1)=1,IF(AND(YEAR(JanNed1+27)=KalendárnyRok,MONTH(JanNed1+27)=1),JanNed1+27,\"\"),IF(AND(YEAR(JanNed1+34)=KalendárnyRok,MONTH(JanNed1+34)=1),JanNed1+34,\"\"))","v":""},{"$f":"IF(DAY(JanNed1)=1,IF(AND(YEAR(JanNed1+28)=KalendárnyRok,MONTH(JanNed1+28)=1),JanNed1+28,\"\"),IF(AND(YEAR(JanNed1+35)=KalendárnyRok,MONTH(JanNed1+35)=1),JanNed1+35,\"\"))","v":""},null,{"$f":"IF(DAY(FebNed1)=1,IF(AND(YEAR(FebNed1+22)=KalendárnyRok,MONTH(FebNed1+22)=2),FebNed1+22,\"\"),IF(AND(YEAR(FebNed1+29)=KalendárnyRok,MONTH(FebNed1+29)=2),FebNed1+29,\"\"))","v":"2020-02-24"},{"$f":"IF(DAY(FebNed1)=1,IF(AND(YEAR(FebNed1+23)=KalendárnyRok,MONTH(FebNed1+23)=2),FebNed1+23,\"\"),IF(AND(YEAR(FebNed1+30)=KalendárnyRok,MONTH(FebNed1+30)=2),FebNed1+30,\"\"))","v":"2020-02-25"},{"$f":"IF(DAY(FebNed1)=1,IF(AND(YEAR(FebNed1+24)=KalendárnyRok,MONTH(FebNed1+24)=2),FebNed1+24,\"\"),IF(AND(YEAR(FebNed1+31)=KalendárnyRok,MONTH(FebNed1+31)=2),FebNed1+31,\"\"))","v":"2020-02-26"},{"$f":"IF(DAY(FebNed1)=1,IF(AND(YEAR(FebNed1+25)=KalendárnyRok,MONTH(FebNed1+25)=2),FebNed1+25,\"\"),IF(AND(YEAR(FebNed1+32)=KalendárnyRok,MONTH(FebNed1+32)=2),FebNed1+32,\"\"))","v":"2020-02-27"},{"$f":"IF(DAY(FebNed1)=1,IF(AND(YEAR(FebNed1+26)=KalendárnyRok,MONTH(FebNed1+26)=2),FebNed1+26,\"\"),IF(AND(YEAR(FebNed1+33)=KalendárnyRok,MONTH(FebNed1+33)=2),FebNed1+33,\"\"))","v":"2020-02-28"},{"$f":"IF(DAY(FebNed1)=1,IF(AND(YEAR(FebNed1+27)=KalendárnyRok,MONTH(FebNed1+27)=2),FebNed1+27,\"\"),IF(AND(YEAR(FebNed1+34)=KalendárnyRok,MONTH(FebNed1+34)=2),FebNed1+34,\"\"))","v":"2020-02-29"},{"$f":"IF(DAY(FebNed1)=1,IF(AND(YEAR(FebNed1+28)=KalendárnyRok,MONTH(FebNed1+28)=2),FebNed1+28,\"\"),IF(AND(YEAR(FebNed1+35)=KalendárnyRok,MONTH(FebNed1+35)=2),FebNed1+35,\"\"))","v":""},{"$nulls":3},"22. FEBRUÁR"]
[null,null,{"$f":"IF(DAY(JanNed1)=1,IF(AND(YEAR(JanNed1+29)=KalendárnyRok,MONTH(JanNed1+29)=1),JanNed1+29,\"\"),IF(AND(YEAR(JanNed1+36)=KalendárnyRok,MONTH(JanNed1+36)=1),JanNed1+36,\"\"))","v":""},{"$f":"IF(DAY(JanNed1)=1,IF(AND(YEAR(JanNed1+30)=KalendárnyRok,MONTH(JanNed1+30)=1),JanNed1+30,\"\"),IF(AND(YEAR(JanNed1+37)=KalendárnyRok,MONTH(JanNed1+37)=1),JanNed1+37,\"\"))","v":""},{"$f":"IF(DAY(JanNed1)=1,IF(AND(YEAR(JanNed1+31)=KalendárnyRok,MONTH(JanNed1+31)=1),JanNed1+31,\"\"),IF(AND(YEAR(JanNed1+38)=KalendárnyRok,MONTH(JanNed1+38)=1),JanNed1+38,\"\"))","v":""},{"$f":"IF(DAY(JanNed1)=1,IF(AND(YEAR(JanNed1+32)=KalendárnyRok,MONTH(JanNed1+32)=1),JanNed1+32,\"\"),IF(AND(YEAR(JanNed1+39)=KalendárnyRok,MONTH(JanNed1+39)=1),JanNed1+39,\"\"))","v":""},{"$f":"IF(DAY(JanNed1)=1,IF(AND(YEAR(JanNed1+33)=KalendárnyRok,MONTH(JanNed1+33)=1),JanNed1+33,\"\"),IF(AND(YEAR(JanNed1+40)=KalendárnyRok,MONTH(JanNed1+40)=1),JanNed1+40,\"\"))","v":""},{"$f":"IF(DAY(JanNed1)=1,IF(AND(YEAR(JanNed1+34)=KalendárnyRok,MONTH(JanNed1+34)=1),JanNed1+34,\"\"),IF(AND(YEAR(JanNed1+41)=KalendárnyRok,MONTH(JanNed1+41)=1),JanNed1+41,\"\"))","v":""},{"$f":"IF(DAY(JanNed1)=1,IF(AND(YEAR(JanNed1+35)=KalendárnyRok,MONTH(JanNed1+35)=1),JanNed1+35,\"\"),IF(AND(YEAR(JanNed1+42)=KalendárnyRok,MONTH(JanNed1+42)=1),JanNed1+42,\"\"))","v":""},null,{"$f":"IF(DAY(FebNed1)=1,IF(AND(YEAR(FebNed1+29)=KalendárnyRok,MONTH(FebNed1+29)=2),FebNed1+29,\"\"),IF(AND(YEAR(FebNed1+36)=KalendárnyRok,MONTH(FebNed1+36)=2),FebNed1+36,\"\"))","v":""},{"$f":"IF(DAY(FebNed1)=1,IF(AND(YEAR(FebNed1+30)=KalendárnyRok,MONTH(FebNed1+30)=2),FebNed1+30,\"\"),IF(AND(YEAR(FebNed1+37)=KalendárnyRok,MONTH(FebNed1+37)=2),FebNed1+37,\"\"))","v":""},{"$f":"IF(DAY(FebNed1)=1,IF(AND(YEAR(FebNed1+31)=KalendárnyRok,MONTH(FebNed1+31)=2),FebNed1+31,\"\"),IF(AND(YEAR(FebNed1+38)=KalendárnyRok,MONTH(FebNed1+38)=2),FebNed1+38,\"\"))","v":""},{"$f":"IF(DAY(FebNed1)=1,IF(AND(YEAR(FebNed1+32)=KalendárnyRok,MONTH(FebNed1+32)=2),FebNed1+32,\"\"),IF(AND(YEAR(FebNed1+39)=KalendárnyRok,MONTH(FebNed1+39)=2),FebNed1+39,\"\"))","v":""},{"$f":"IF(DAY(FebNed1)=1,IF(AND(YEAR(FebNed1+33)=KalendárnyRok,MONTH(FebNed1+33)=2),FebNed1+33,\"\"),IF(AND(YEAR(FebNed1+40)=KalendárnyRok,MONTH(FebNed1+40)=2),FebNed1+40,\"\"))","v":""},{"$f":"IF(DAY(FebNed1)=1,IF(AND(YEAR(FebNed1+34)=KalendárnyRok,MONTH(FebNed1+34)=2),FebNed1+34,\"\"),IF(AND(YEAR(FebNed1+41)=KalendárnyRok,MONTH(FebNed1+41)=2),FebNed1+41,\"\"))","v":""},{"$f":"IF(DAY(FebNed1)=1,IF(AND(YEAR(FebNed1+35)=KalendárnyRok,MONTH(FebNed1+35)=2),FebNed1+35,\"\"),IF(AND(YEAR(FebNed1+42)=KalendárnyRok,MONTH(FebNed1+42)=2),FebNed1+42,\"\"))","v":""},{"$nulls":3},"DEŇ OTVORENÝCH DVERÍ"]
[]
["V bunke C12 je označenie Marec a v bunke K12 je označenie Apríl.",null,"MAREC",{"$nulls":7},"APRÍL"]
["V bunkách C13 až I19 je tabuľka kalendára na marec a v bunkách K13 až Q19 je tabuľka kalendára na apríl. V bunke A21 je ďalší pokyn.",null,"PO","UT","ST","ŠT","PI","SO","NE",null,"PO","UT","ST","ŠT","PI","SO","NE"]
[null,null,{"$f":"IF(DAY(MarNed1)=1,\"\",IF(AND(YEAR(MarNed1+1)=KalendárnyRok,MONTH(MarNed1+1)=3),MarNed1+1,\"\"))","v":""},{"$f":"IF(DAY(MarNed1)=1,\"\",IF(AND(YEAR(MarNed1+2)=KalendárnyRok,MONTH(MarNed1+2)=3),MarNed1+2,\"\"))","v":""},{"$f":"IF(DAY(MarNed1)=1,\"\",IF(AND(YEAR(MarNed1+3)=KalendárnyRok,MONTH(MarNed1+3)=3),MarNed1+3,\"\"))","v":""},{"$f":"IF(DAY(MarNed1)=1,\"\",IF(AND(YEAR(MarNed1+4)=KalendárnyRok,MONTH(MarNed1+4)=3),MarNed1+4,\"\"))","v":""},{"$f":"IF(DAY(MarNed1)=1,\"\",IF(AND(YEAR(MarNed1+5)=KalendárnyRok,MONTH(MarNed1+5)=3),MarNed1+5,\"\"))","v":""},{"$f":"IF(DAY(MarNed1)=1,\"\",IF(AND(YEAR(MarNed1+6)=KalendárnyRok,MONTH(MarNed1+6)=3),MarNed1+6,\"\"))","v":""},{"$f":"IF(DAY(MarNed1)=1,IF(AND(YEAR(MarNed1)=KalendárnyRok,MONTH(MarNed1)=3),MarNed1,\"\"),IF(AND(YEAR(MarNed1+7)=KalendárnyRok,MONTH(MarNed1+7)=3),MarNed1+7,\"\"))","v":"2020-03-01"},null,{"$f":"IF(DAY(AprNed1)=1,\"\",IF(AND(YEAR(AprNed1+1)=KalendárnyRok,MONTH(AprNed1+1)=4),AprNed1+1,\"\"))","v":""},{"$f":"IF(DAY(AprNed1)=1,\"\",IF(AND(YEAR(AprNed1+2)=KalendárnyRok,MONTH(AprNed1+2)=4),AprNed1+2,\"\"))","v":""},{"$f":"IF(DAY(AprNed1)=1,\"\",IF(AND(YEAR(AprNed1+3)=KalendárnyRok,MONTH(AprNed1+3)=4),AprNed1+3,\"\"))","v":"2020-04-01"},{"$f":"IF(DAY(AprNed1)=1,\"\",IF(AND(YEAR(AprNed1+4)=KalendárnyRok,MONTH(AprNed1+4)=4),AprNed1+4,\"\"))","v":"2020-04-02"},{"$f":"IF(DAY(AprNed1)=1,\"\",IF(AND(YEAR(AprNed1+5)=KalendárnyRok,MONTH(AprNed1+5)=4),AprNed1+5,\"\"))","v":"2020-04-03"},{"$f":"IF(DAY(AprNed1)=1,\"\",IF(AND(YEAR(AprNed1+6)=KalendárnyRok,MONTH(AprNed1+6)=4),AprNed1+6,\"\"))","v":"2020-04-04"},{"$f":"IF(DAY(AprNed1)=1,IF(AND(YEAR(AprNed1)=KalendárnyRok,MONTH(AprNed1)=4),AprNed1,\"\"),IF(AND(YEAR(AprNed1+7)=KalendárnyRok,MONTH(AprNed1+7)=4),AprNed1+7,\"\"))","v":"2020-04-05"}]
[null,null,{"$f":"IF(DAY(MarNed1)=1,IF(AND(YEAR(MarNed1+1)=KalendárnyRok,MONTH(MarNed1+1)=3),MarNed1+1,\"\"),IF(AND(YEAR(MarNed1+8)=KalendárnyRok,MONTH(MarNed1+8)=3),MarNed1+8,\"\"))","v":"2020-03-02"},{"$f":"IF(DAY(MarNed1)=1,IF(AND(YEAR(MarNed1+2)=KalendárnyRok,MONTH(MarNed1+2)=3),MarNed1+2,\"\"),IF(AND(YEAR(MarNed1+9)=KalendárnyRok,MONTH(MarNed1+9)=3),MarNed1+9,\"\"))","v":"2020-03-03"},{"$f":"IF(DAY(MarNed1)=1,IF(AND(YEAR(MarNed1+3)=KalendárnyRok,MONTH(MarNed1+3)=3),MarNed1+3,\"\"),IF(AND(YEAR(MarNed1+10)=KalendárnyRok,MONTH(MarNed1+10)=3),MarNed1+10,\"\"))","v":"2020-03-04"},{"$f":"IF(DAY(MarNed1)=1,IF(AND(YEAR(MarNed1+4)=KalendárnyRok,MONTH(MarNed1+4)=3),MarNed1+4,\"\"),IF(AND(YEAR(MarNed1+11)=KalendárnyRok,MONTH(MarNed1+11)=3),MarNed1+11,\"\"))","v":"2020-03-05"},{"$f":"IF(DAY(MarNed1)=1,IF(AND(YEAR(MarNed1+5)=KalendárnyRok,MONTH(MarNed1+5)=3),MarNed1+5,\"\"),IF(AND(YEAR(MarNed1+12)=KalendárnyRok,MONTH(MarNed1+12)=3),MarNed1+12,\"\"))","v":"2020-03-06"},{"$f":"IF(DAY(MarNed1)=1,IF(AND(YEAR(MarNed1+6)=KalendárnyRok,MONTH(MarNed1+6)=3),MarNed1+6,\"\"),IF(AND(YEAR(MarNed1+13)=KalendárnyRok,MONTH(MarNed1+13)=3),MarNed1+13,\"\"))","v":"2020-03-07"},{"$f":"IF(DAY(MarNed1)=1,IF(AND(YEAR(MarNed1+7)=KalendárnyRok,MONTH(MarNed1+7)=3),MarNed1+7,\"\"),IF(AND(YEAR(MarNed1+14)=KalendárnyRok,MONTH(MarNed1+14)=3),MarNed1+14,\"\"))","v":"2020-03-08"},null,{"$f":"IF(DAY(AprNed1)=1,IF(AND(YEAR(AprNed1+1)=KalendárnyRok,MONTH(AprNed1+1)=4),AprNed1+1,\"\"),IF(AND(YEAR(AprNed1+8)=KalendárnyRok,MONTH(AprNed1+8)=4),AprNed1+8,\"\"))","v":"2020-04-06"},{"$f":"IF(DAY(AprNed1)=1,IF(AND(YEAR(AprNed1+2)=KalendárnyRok,MONTH(AprNed1+2)=4),AprNed1+2,\"\"),IF(AND(YEAR(AprNed1+9)=KalendárnyRok,MONTH(AprNed1+9)=4),AprNed1+9,\"\"))","v":"2020-04-07"},{"$f":"IF(DAY(AprNed1)=1,IF(AND(YEAR(AprNed1+3)=KalendárnyRok,MONTH(AprNed1+3)=4),AprNed1+3,\"\"),IF(AND(YEAR(AprNed1+10)=KalendárnyRok,MONTH(AprNed1+10)=4),AprNed1+10,\"\"))","v":"2020-04-08"},{"$f":"IF(DAY(AprNed1)=1,IF(AND(YEAR(AprNed1+4)=KalendárnyRok,MONTH(AprNed1+4)=4),AprNed1+4,\"\"),IF(AND(YEAR(AprNed1+11)=KalendárnyRok,MONTH(AprNed1+11)=4),AprNed1+11,\"\"))","v":"2020-04-09"},{"$f":"IF(DAY(AprNed1)=1,IF(AND(YEAR(AprNed1+5)=KalendárnyRok,MONTH(AprNed1+5)=4),AprNed1+5,\"\"),IF(AND(YEAR(AprNed1+12)=KalendárnyRok,MONTH(AprNed1+12)=4),AprNed1+12,\"\"))","v":"2020-04-10"},{"$f":"IF(DAY(AprNed1)=1,IF(AND(YEAR(AprNed1+6)=KalendárnyRok,MONTH(AprNed1+6)=4),AprNed1+6,\"\"),IF(AND(YEAR(AprNed1+13)=KalendárnyRok,MONTH(AprNed1+13)=4),AprNed1+13,\"\"))","v":"2020-04-11"},{"$f":"IF(DAY(AprNed1)=1,IF(AND(YEAR(AprNed1+7)=KalendárnyRok,MONTH(AprNed1+7)=4),AprNed1+7,\"\"),IF(AND(YEAR(AprNed1+14)=KalendárnyRok,MONTH(AprNed1+14)=4),AprNed1+14,\"\"))","v":"2020-04-12"}]
[null,null,{"$f":"IF(DAY(MarNed1)=1,IF(AND(YEAR(MarNed1+8)=KalendárnyRok,MONTH(MarNed1+8)=3),MarNed1+8,\"\"),IF(AND(YEAR(MarNed1+15)=KalendárnyRok,MONTH(MarNed1+15)=3),MarNed1+15,\"\"))","v":"2020-03-09"},{"$f":"IF(DAY(MarNed1)=1,IF(AND(YEAR(MarNed1+9)=KalendárnyRok,MONTH(MarNed1+9)=3),MarNed1+9,\"\"),IF(AND(YEAR(MarNed1+16)=KalendárnyRok,MONTH(MarNed1+16)=3),MarNed1+16,\"\"))","v":"2020-03-10"},{"$f":"IF(DAY(MarNed1)=1,IF(AND(YEAR(MarNed1+10)=KalendárnyRok,MONTH(MarNed1+10)=3),MarNed1+10,\"\"),IF(AND(YEAR(MarNed1+17)=KalendárnyRok,MONTH(MarNed1+17)=3),MarNed1+17,\"\"))","v":"2020-03-11"},{"$f":"IF(DAY(MarNed1)=1,IF(AND(YEAR(MarNed1+11)=KalendárnyRok,MONTH(MarNed1+11)=3),MarNed1+11,\"\"),IF(AND(YEAR(MarNed1+18)=KalendárnyRok,MONTH(MarNed1+18)=3),MarNed1+18,\"\"))","v":"2020-03-12"},{"$f":"IF(DAY(MarNed1)=1,IF(AND(YEAR(MarNed1+12)=KalendárnyRok,MONTH(MarNed1+12)=3),MarNed1+12,\"\"),IF(AND(YEAR(MarNed1+19)=KalendárnyRok,MONTH(MarNed1+19)=3),MarNed1+19,\"\"))","v":"2020-03-13"},{"$f":"IF(DAY(MarNed1)=1,IF(AND(YEAR(MarNed1+13)=KalendárnyRok,MONTH(MarNed1+13)=3),MarNed1+13,\"\"),IF(AND(YEAR(MarNed1+20)=KalendárnyRok,MONTH(MarNed1+20)=3),MarNed1+20,\"\"))","v":"2020-03-14"},{"$f":"IF(DAY(MarNed1)=1,IF(AND(YEAR(MarNed1+14)=KalendárnyRok,MONTH(MarNed1+14)=3),MarNed1+14,\"\"),IF(AND(YEAR(MarNed1+21)=KalendárnyRok,MONTH(MarNed1+21)=3),MarNed1+21,\"\"))","v":"2020-03-15"},null,{"$f":"IF(DAY(AprNed1)=1,IF(AND(YEAR(AprNed1+8)=KalendárnyRok,MONTH(AprNed1+8)=4),AprNed1+8,\"\"),IF(AND(YEAR(AprNed1+15)=KalendárnyRok,MONTH(AprNed1+15)=4),AprNed1+15,\"\"))","v":"2020-04-13"},{"$f":"IF(DAY(AprNed1)=1,IF(AND(YEAR(AprNed1+9)=KalendárnyRok,MONTH(AprNed1+9)=4),AprNed1+9,\"\"),IF(AND(YEAR(AprNed1+16)=KalendárnyRok,MONTH(AprNed1+16)=4),AprNed1+16,\"\"))","v":"2020-04-14"},{"$f":"IF(DAY(AprNed1)=1,IF(AND(YEAR(AprNed1+10)=KalendárnyRok,MONTH(AprNed1+10)=4),AprNed1+10,\"\"),IF(AND(YEAR(AprNed1+17)=KalendárnyRok,MONTH(AprNed1+17)=4),AprNed1+17,\"\"))","v":"2020-04-15"},{"$f":"IF(DAY(AprNed1)=1,IF(AND(YEAR(AprNed1+11)=KalendárnyRok,MONTH(AprNed1+11)=4),AprNed1+11,\"\"),IF(AND(YEAR(AprNed1+18)=KalendárnyRok,MONTH(AprNed1+18)=4),AprNed1+18,\"\"))","v":"2020-04-16"},{"$f":"IF(DAY(AprNed1)=1,IF(AND(YEAR(AprNed1+12)=KalendárnyRok,MONTH(AprNed1+12)=4),AprNed1+12,\"\"),IF(AND(YEAR(AprNed1+19)=KalendárnyRok,MONTH(AprNed1+19)=4),AprNed1+19,\"\"))","v":"2020-04-17"},{"$f":"IF(DAY(AprNed1)=1,IF(AND(YEAR(AprNed1+13)=KalendárnyRok,MONTH(AprNed1+13)=4),AprNed1+13,\"\"),IF(AND(YEAR(AprNed1+20)=KalendárnyRok,MONTH(AprNed1+20)=4),AprNed1+20,\"\"))","v":"2020-04-18"},{"$f":"IF(DAY(AprNed1)=1,IF(AND(YEAR(AprNed1+14)=KalendárnyRok,MONTH(AprNed1+14)=4),AprNed1+14,\"\"),IF(AND(YEAR(AprNed1+21)=KalendárnyRok,MONTH(AprNed1+21)=4),AprNed1+21,\"\"))","v":"2020-04-19"}]
[null,null,{"$f":"IF(DAY(MarNed1)=1,IF(AND(YEAR(MarNed1+15)=KalendárnyRok,MONTH(MarNed1+15)=3),MarNed1+15,\"\"),IF(AND(YEAR(MarNed1+22)=KalendárnyRok,MONTH(MarNed1+22)=3),MarNed1+22,\"\"))","v":"2020-03-16"},{"$f":"IF(DAY(MarNed1)=1,IF(AND(YEAR(MarNed1+16)=KalendárnyRok,MONTH(MarNed1+16)=3),MarNed1+16,\"\"),IF(AND(YEAR(MarNed1+23)=KalendárnyRok,MONTH(MarNed1+23)=3),MarNed1+23,\"\"))","v":"2020-03-17"},{"$f":"IF(DAY(MarNed1)=1,IF(AND(YEAR(MarNed1+17)=KalendárnyRok,MONTH(MarNed1+17)=3),MarNed1+17,\"\"),IF(AND(YEAR(MarNed1+24)=KalendárnyRok,MONTH(MarNed1+24)=3),MarNed1+24,\"\"))","v":"2020-03-18"},{"$f":"IF(DAY(MarNed1)=1,IF(AND(YEAR(MarNed1+18)=KalendárnyRok,MONTH(MarNed1+18)=3),MarNed1+18,\"\"),IF(AND(YEAR(MarNed1+25)=KalendárnyRok,MONTH(MarNed1+25)=3),MarNed1+25,\"\"))","v":"2020-03-19"},{"$f":"IF(DAY(MarNed1)=1,IF(AND(YEAR(MarNed1+19)=KalendárnyRok,MONTH(MarNed1+19)=3),MarNed1+19,\"\"),IF(AND(YEAR(MarNed1+26)=KalendárnyRok,MONTH(MarNed1+26)=3),MarNed1+26,\"\"))","v":"2020-03-20"},{"$f":"IF(DAY(MarNed1)=1,IF(AND(YEAR(MarNed1+20)=KalendárnyRok,MONTH(MarNed1+20)=3),MarNed1+20,\"\"),IF(AND(YEAR(MarNed1+27)=KalendárnyRok,MONTH(MarNed1+27)=3),MarNed1+27,\"\"))","v":"2020-03-21"},{"$f":"IF(DAY(MarNed1)=1,IF(AND(YEAR(MarNed1+21)=KalendárnyRok,MONTH(MarNed1+21)=3),MarNed1+21,\"\"),IF(AND(YEAR(MarNed1+28)=KalendárnyRok,MONTH(MarNed1+28)=3),MarNed1+28,\"\"))","v":"2020-03-22"},null,{"$f":"IF(DAY(AprNed1)=1,IF(AND(YEAR(AprNed1+15)=KalendárnyRok,MONTH(AprNed1+15)=4),AprNed1+15,\"\"),IF(AND(YEAR(AprNed1+22)=KalendárnyRok,MONTH(AprNed1+22)=4),AprNed1+22,\"\"))","v":"2020-04-20"},{"$f":"IF(DAY(AprNed1)=1,IF(AND(YEAR(AprNed1+16)=KalendárnyRok,MONTH(AprNed1+16)=4),AprNed1+16,\"\"),IF(AND(YEAR(AprNed1+23)=KalendárnyRok,MONTH(AprNed1+23)=4),AprNed1+23,\"\"))","v":"2020-04-21"},{"$f":"IF(DAY(AprNed1)=1,IF(AND(YEAR(AprNed1+17)=KalendárnyRok,MONTH(AprNed1+17)=4),AprNed1+17,\"\"),IF(AND(YEAR(AprNed1+24)=KalendárnyRok,MONTH(AprNed1+24)=4),AprNed1+24,\"\"))","v":"2020-04-22"},{"$f":"IF(DAY(AprNed1)=1,IF(AND(YEAR(AprNed1+18)=KalendárnyRok,MONTH(AprNed1+18)=4),AprNed1+18,\"\"),IF(AND(YEAR(AprNed1+25)=KalendárnyRok,MONTH(AprNed1+25)=4),AprNed1+25,\"\"))","v":"2020-04-23"},{"$f":"IF(DAY(AprNed1)=1,IF(AND(YEAR(AprNed1+19)=KalendárnyRok,MONTH(AprNed1+19)=4),AprNed1+19,\"\"),IF(AND(YEAR(AprNed1+26)=KalendárnyRok,MONTH(AprNed1+26)=4),AprNed1+26,\"\"))","v":"2020-04-24"},{"$f":"IF(DAY(AprNed1)=1,IF(AND(YEAR(AprNed1+20)=KalendárnyRok,MONTH(AprNed1+20)=4),AprNed1+20,\"\"),IF(AND(YEAR(AprNed1+27)=KalendárnyRok,MONTH(AprNed1+27)=4),AprNed1+27,\"\"))","v":"2020-04-25"},{"$f":"IF(DAY(AprNed1)=1,IF(AND(YEAR(AprNed1+21)=KalendárnyRok,MONTH(AprNed1+21)=4),AprNed1+21,\"\"),IF(AND(YEAR(AprNed1+28)=KalendárnyRok,MONTH(AprNed1+28)=4),AprNed1+28,\"\"))","v":"2020-04-26"}]
[null,null,{"$f":"IF(DAY(MarNed1)=1,IF(AND(YEAR(MarNed1+22)=KalendárnyRok,MONTH(MarNed1+22)=3),MarNed1+22,\"\"),IF(AND(YEAR(MarNed1+29)=KalendárnyRok,MONTH(MarNed1+29)=3),MarNed1+29,\"\"))","v":"2020-03-23"},{"$f":"IF(DAY(MarNed1)=1,IF(AND(YEAR(MarNed1+23)=KalendárnyRok,MONTH(MarNed1+23)=3),MarNed1+23,\"\"),IF(AND(YEAR(MarNed1+30)=KalendárnyRok,MONTH(MarNed1+30)=3),MarNed1+30,\"\"))","v":"2020-03-24"},{"$f":"IF(DAY(MarNed1)=1,IF(AND(YEAR(MarNed1+24)=KalendárnyRok,MONTH(MarNed1+24)=3),MarNed1+24,\"\"),IF(AND(YEAR(MarNed1+31)=KalendárnyRok,MONTH(MarNed1+31)=3),MarNed1+31,\"\"))","v":"2020-03-25"},{"$f":"IF(DAY(MarNed1)=1,IF(AND(YEAR(MarNed1+25)=KalendárnyRok,MONTH(MarNed1+25)=3),MarNed1+25,\"\"),IF(AND(YEAR(MarNed1+32)=KalendárnyRok,MONTH(MarNed1+32)=3),MarNed1+32,\"\"))","v":"2020-03-26"},{"$f":"IF(DAY(MarNed1)=1,IF(AND(YEAR(MarNed1+26)=KalendárnyRok,MONTH(MarNed1+26)=3),MarNed1+26,\"\"),IF(AND(YEAR(MarNed1+33)=KalendárnyRok,MONTH(MarNed1+33)=3),MarNed1+33,\"\"))","v":"2020-03-27"},{"$f":"IF(DAY(MarNed1)=1,IF(AND(YEAR(MarNed1+27)=KalendárnyRok,MONTH(MarNed1+27)=3),MarNed1+27,\"\"),IF(AND(YEAR(MarNed1+34)=KalendárnyRok,MONTH(MarNed1+34)=3),MarNed1+34,\"\"))","v":"2020-03-28"},{"$f":"IF(DAY(MarNed1)=1,IF(AND(YEAR(MarNed1+28)=KalendárnyRok,MONTH(MarNed1+28)=3),MarNed1+28,\"\"),IF(AND(YEAR(MarNed1+35)=KalendárnyRok,MONTH(MarNed1+35)=3),MarNed1+35,\"\"))","v":"2020-03-29"},null,{"$f":"IF(DAY(AprNed1)=1,IF(AND(YEAR(AprNed1+22)=KalendárnyRok,MONTH(AprNed1+22)=4),AprNed1+22,\"\"),IF(AND(YEAR(AprNed1+29)=KalendárnyRok,MONTH(AprNed1+29)=4),AprNed1+29,\"\"))","v":"2020-04-27"},{"$f":"IF(DAY(AprNed1)=1,IF(AND(YEAR(AprNed1+23)=KalendárnyRok,MONTH(AprNed1+23)=4),AprNed1+23,\"\"),IF(AND(YEAR(AprNed1+30)=KalendárnyRok,MONTH(AprNed1+30)=4),AprNed1+30,\"\"))","v":"2020-04-28"},{"$f":"IF(DAY(AprNed1)=1,IF(AND(YEAR(AprNed1+24)=KalendárnyRok,MONTH(AprNed1+24)=4),AprNed1+24,\"\"),IF(AND(YEAR(AprNed1+31)=KalendárnyRok,MONTH(AprNed1+31)=4),AprNed1+31,\"\"))","v":"2020-04-29"},{"$f":"IF(DAY(AprNed1)=1,IF(AND(YEAR(AprNed1+25)=KalendárnyRok,MONTH(AprNed1+25)=4),AprNed1+25,\"\"),IF(AND(YEAR(AprNed1+32)=KalendárnyRok,MONTH(AprNed1+32)=4),AprNed1+32,\"\"))","v":"2020-04-30"},{"$f":"IF(DAY(AprNed1)=1,IF(AND(YEAR(AprNed1+26)=KalendárnyRok,MONTH(AprNed1+26)=4),AprNed1+26,\"\"),IF(AND(YEAR(AprNed1+33)=KalendárnyRok,MONTH(AprNed1+33)=4),AprNed1+33,\"\"))","v":""},{"$f":"IF(DAY(AprNed1)=1,IF(AND(YEAR(AprNed1+27)=KalendárnyRok,MONTH(AprNed1+27)=4),AprNed1+27,\"\"),IF(AND(YEAR(AprNed1+34)=KalendárnyRok,MONTH(AprNed1+34)=4),AprNed1+34,\"\"))","v":""},{"$f":"IF(DAY(AprNed1)=1,IF(AND(YEAR(AprNed1+28)=KalendárnyRok,MONTH(AprNed1+28)=4),AprNed1+28,\"\"),IF(AND(YEAR(AprNed1+35)=KalendárnyRok,MONTH(AprNed1+35)=4),AprNed1+35,\"\"))","v":""}]
[null,null,{"$f":"IF(DAY(MarNed1)=1,IF(AND(YEAR(MarNed1+29)=KalendárnyRok,MONTH(MarNed1+29)=3),MarNed1+29,\"\"),IF(AND(YEAR(MarNed1+36)=KalendárnyRok,MONTH(MarNed1+36)=3),MarNed1+36,\"\"))","v":"2020-03-30"},{"$f":"IF(DAY(MarNed1)=1,IF(AND(YEAR(MarNed1+30)=KalendárnyRok,MONTH(MarNed1+30)=3),MarNed1+30,\"\"),IF(AND(YEAR(MarNed1+37)=KalendárnyRok,MONTH(MarNed1+37)=3),MarNed1+37,\"\"))","v":"2020-03-31"},{"$f":"IF(DAY(MarNed1)=1,IF(AND(YEAR(MarNed1+31)=KalendárnyRok,MONTH(MarNed1+31)=3),MarNed1+31,\"\"),IF(AND(YEAR(MarNed1+38)=KalendárnyRok,MONTH(MarNed1+38)=3),MarNed1+38,\"\"))","v":""},{"$f":"IF(DAY(MarNed1)=1,IF(AND(YEAR(MarNed1+32)=KalendárnyRok,MONTH(MarNed1+32)=3),MarNed1+32,\"\"),IF(AND(YEAR(MarNed1+39)=KalendárnyRok,MONTH(MarNed1+39)=3),MarNed1+39,\"\"))","v":""},{"$f":"IF(DAY(MarNed1)=1,IF(AND(YEAR(MarNed1+33)=KalendárnyRok,MONTH(MarNed1+33)=3),MarNed1+33,\"\"),IF(AND(YEAR(MarNed1+40)=KalendárnyRok,MONTH(MarNed1+40)=3),MarNed1+40,\"\"))","v":""},{"$f":"IF(DAY(MarNed1)=1,IF(AND(YEAR(MarNed1+34)=KalendárnyRok,MONTH(MarNed1+34)=3),MarNed1+34,\"\"),IF(AND(YEAR(MarNed1+41)=KalendárnyRok,MONTH(MarNed1+41)=3),MarNed1+41,\"\"))","v":""},{"$f":"IF(DAY(MarNed1)=1,IF(AND(YEAR(MarNed1+35)=KalendárnyRok,MONTH(MarNed1+35)=3),MarNed1+35,\"\"),IF(AND(YEAR(MarNed1+42)=KalendárnyRok,MONTH(MarNed1+42)=3),MarNed1+42,\"\"))","v":""},null,{"$f":"IF(DAY(AprNed1)=1,IF(AND(YEAR(AprNed1+29)=KalendárnyRok,MONTH(AprNed1+29)=4),AprNed1+29,\"\"),IF(AND(YEAR(AprNed1+36)=KalendárnyRok,MONTH(AprNed1+36)=4),AprNed1+36,\"\"))","v":""},{"$f":"IF(DAY(AprNed1)=1,IF(AND(YEAR(AprNed1+30)=KalendárnyRok,MONTH(AprNed1+30)=4),AprNed1+30,\"\"),IF(AND(YEAR(AprNed1+37)=KalendárnyRok,MONTH(AprNed1+37)=4),AprNed1+37,\"\"))","v":""},{"$f":"IF(DAY(AprNed1)=1,IF(AND(YEAR(AprNed1+31)=KalendárnyRok,MONTH(AprNed1+31)=4),AprNed1+31,\"\"),IF(AND(YEAR(AprNed1+38)=KalendárnyRok,MONTH(AprNed1+38)=4),AprNed1+38,\"\"))","v":""},{"$f":"IF(DAY(AprNed1)=1,IF(AND(YEAR(AprNed1+32)=KalendárnyRok,MONTH(AprNed1+32)=4),AprNed1+32,\"\"),IF(AND(YEAR(AprNed1+39)=KalendárnyRok,MONTH(AprNed1+39)=4),AprNed1+39,\"\"))","v":""},{"$f":"IF(DAY(AprNed1)=1,IF(AND(YEAR(AprNed1+33)=KalendárnyRok,MONTH(AprNed1+33)=4),AprNed1+33,\"\"),IF(AND(YEAR(AprNed1+40)=KalendárnyRok,MONTH(AprNed1+40)=4),AprNed1+40,\"\"))","v":""},{"$f":"IF(DAY(AprNed1)=1,IF(AND(YEAR(AprNed1+34)=KalendárnyRok,MONTH(AprNed1+34)=4),AprNed1+34,\"\"),IF(AND(YEAR(AprNed1+41)=KalendárnyRok,MONTH(AprNed1+41)=4),AprNed1+41,\"\"))","v":""},{"$f":"IF(DAY(AprNed1)=1,IF(AND(YEAR(AprNed1+35)=KalendárnyRok,MONTH(AprNed1+35)=4),AprNed1+35,\"\"),IF(AND(YEAR(AprNed1+42)=KalendárnyRok,MONTH(AprNed1+42)=4),AprNed1+42,\"\"))","v":""}]
[]
["V bunke C12 je označenie Máj a v bunke K12 je označenie Jún.",null,"MÁJ",{"$nulls":7},"JÚN"]
["V bunkách C22 až I28 je tabuľka kalendára na máj a v bunkách K22 až Q28 je tabuľka kalendára na jún. V bunke A30 je ďalší pokyn.",null,"PO","UT","ST","ŠT","PI","SO","NE",null,"PO","UT","ST","ŠT","PI","SO","NE"]
[null,null,{"$f":"IF(DAY(MájNed1)=1,\"\",IF(AND(YEAR(MájNed1+1)=KalendárnyRok,MONTH(MájNed1+1)=5),MájNed1+1,\"\"))","v":""},{"$f":"IF(DAY(MájNed1)=1,\"\",IF(AND(YEAR(MájNed1+2)=KalendárnyRok,MONTH(MájNed1+2)=5),MájNed1+2,\"\"))","v":""},{"$f":"IF(DAY(MájNed1)=1,\"\",IF(AND(YEAR(MájNed1+3)=KalendárnyRok,MONTH(MájNed1+3)=5),MájNed1+3,\"\"))","v":""},{"$f":"IF(DAY(MájNed1)=1,\"\",IF(AND(YEAR(MájNed1+4)=KalendárnyRok,MONTH(MájNed1+4)=5),MájNed1+4,\"\"))","v":""},{"$f":"IF(DAY(MájNed1)=1,\"\",IF(AND(YEAR(MájNed1+5)=KalendárnyRok,MONTH(MájNed1+5)=5),MájNed1+5,\"\"))","v":"2020-05-01"},{"$f":"IF(DAY(MájNed1)=1,\"\",IF(AND(YEAR(MájNed1+6)=KalendárnyRok,MONTH(MájNed1+6)=5),MájNed1+6,\"\"))","v":"2020-05-02"},{"$f":"IF(DAY(MájNed1)=1,IF(AND(YEAR(MájNed1)=KalendárnyRok,MONTH(MájNed1)=5),MájNed1,\"\"),IF(AND(YEAR(MájNed1+7)=KalendárnyRok,MONTH(MájNed1+7)=5),MájNed1+7,\"\"))","v":"2020-05-03"},null,{"$f":"IF(DAY(JúnNed1)=1,\"\",IF(AND(YEAR(JúnNed1+1)=KalendárnyRok,MONTH(JúnNed1+1)=6),JúnNed1+1,\"\"))","v":"2020-06-01"},{"$f":"IF(DAY(JúnNed1)=1,\"\",IF(AND(YEAR(JúnNed1+2)=KalendárnyRok,MONTH(JúnNed1+2)=6),JúnNed1+2,\"\"))","v":"2020-06-02"},{"$f":"IF(DAY(JúnNed1)=1,\"\",IF(AND(YEAR(JúnNed1+3)=KalendárnyRok,MONTH(JúnNed1+3)=6),JúnNed1+3,\"\"))","v":"2020-06-03"},{"$f":"IF(DAY(JúnNed1)=1,\"\",IF(AND(YEAR(JúnNed1+4)=KalendárnyRok,MONTH(JúnNed1+4)=6),JúnNed1+4,\"\"))","v":"2020-06-04"},{"$f":"IF(DAY(JúnNed1)=1,\"\",IF(AND(YEAR(JúnNed1+5)=KalendárnyRok,MONTH(JúnNed1+5)=6),JúnNed1+5,\"\"))","v":"2020-06-05"},{"$f":"IF(DAY(JúnNed1)=1,\"\",IF(AND(YEAR(JúnNed1+6)=KalendárnyRok,MONTH(JúnNed1+6)=6),JúnNed1+6,\"\"))","v":"2020-06-06"},{"$f":"IF(DAY(JúnNed1)=1,IF(AND(YEAR(JúnNed1)=KalendárnyRok,MONTH(JúnNed1)=6),JúnNed1,\"\"),IF(AND(YEAR(JúnNed1+7)=KalendárnyRok,MONTH(JúnNed1+7)=6),JúnNed1+7,\"\"))","v":"2020-06-07"}]
[null,null,{"$f":"IF(DAY(MájNed1)=1,IF(AND(YEAR(MájNed1+1)=KalendárnyRok,MONTH(MájNed1+1)=5),MájNed1+1,\"\"),IF(AND(YEAR(MájNed1+8)=KalendárnyRok,MONTH(MájNed1+8)=5),MájNed1+8,\"\"))","v":"2020-05-04"},{"$f":"IF(DAY(MájNed1)=1,IF(AND(YEAR(MájNed1+2)=KalendárnyRok,MONTH(MájNed1+2)=5),MájNed1+2,\"\"),IF(AND(YEAR(MájNed1+9)=KalendárnyRok,MONTH(MájNed1+9)=5),MájNed1+9,\"\"))","v":"2020-05-05"},{"$f":"IF(DAY(MájNed1)=1,IF(AND(YEAR(MájNed1+3)=KalendárnyRok,MONTH(MájNed1+3)=5),MájNed1+3,\"\"),IF(AND(YEAR(MájNed1+10)=KalendárnyRok,MONTH(MájNed1+10)=5),MájNed1+10,\"\"))","v":"2020-05-06"},{"$f":"IF(DAY(MájNed1)=1,IF(AND(YEAR(MájNed1+4)=KalendárnyRok,MONTH(MájNed1+4)=5),MájNed1+4,\"\"),IF(AND(YEAR(MájNed1+11)=KalendárnyRok,MONTH(MájNed1+11)=5),MájNed1+11,\"\"))","v":"2020-05-07"},{"$f":"IF(DAY(MájNed1)=1,IF(AND(YEAR(MájNed1+5)=KalendárnyRok,MONTH(MájNed1+5)=5),MájNed1+5,\"\"),IF(AND(YEAR(MájNed1+12)=KalendárnyRok,MONTH(MájNed1+12)=5),MájNed1+12,\"\"))","v":"2020-05-08"},{"$f":"IF(DAY(MájNed1)=1,IF(AND(YEAR(MájNed1+6)=KalendárnyRok,MONTH(MájNed1+6)=5),MájNed1+6,\"\"),IF(AND(YEAR(MájNed1+13)=KalendárnyRok,MONTH(MájNed1+13)=5),MájNed1+13,\"\"))","v":"2020-05-09"},{"$f":"IF(DAY(MájNed1)=1,IF(AND(YEAR(MájNed1+7)=KalendárnyRok,MONTH(MájNed1+7)=5),MájNed1+7,\"\"),IF(AND(YEAR(MájNed1+14)=KalendárnyRok,MONTH(MájNed1+14)=5),MájNed1+14,\"\"))","v":"2020-05-10"},null,{"$f":"IF(DAY(JúnNed1)=1,IF(AND(YEAR(JúnNed1+1)=KalendárnyRok,MONTH(JúnNed1+1)=6),JúnNed1+1,\"\"),IF(AND(YEAR(JúnNed1+8)=KalendárnyRok,MONTH(JúnNed1+8)=6),JúnNed1+8,\"\"))","v":"2020-06-08"},{"$f":"IF(DAY(JúnNed1)=1,IF(AND(YEAR(JúnNed1+2)=KalendárnyRok,MONTH(JúnNed1+2)=6),JúnNed1+2,\"\"),IF(AND(YEAR(JúnNed1+9)=KalendárnyRok,MONTH(JúnNed1+9)=6),JúnNed1+9,\"\"))","v":"2020-06-09"},{"$f":"IF(DAY(JúnNed1)=1,IF(AND(YEAR(JúnNed1+3)=KalendárnyRok,MONTH(JúnNed1+3)=6),JúnNed1+3,\"\"),IF(AND(YEAR(JúnNed1+10)=KalendárnyRok,MONTH(JúnNed1+10)=6),JúnNed1+10,\"\"))","v":"2020-06-10"},{"$f":"IF(DAY(JúnNed1)=1,IF(AND(YEAR(JúnNed1+4)=KalendárnyRok,MONTH(JúnNed1+4)=6),JúnNed1+4,\"\"),IF(AND(YEAR(JúnNed1+11)=KalendárnyRok,MONTH(JúnNed1+11)=6),JúnNed1+11,\"\"))","v":"2020-06-11"},{"$f":"IF(DAY(JúnNed1)=1,IF(AND(YEAR(JúnNed1+5)=KalendárnyRok,MONTH(JúnNed1+5)=6),JúnNed1+5,\"\"),IF(AND(YEAR(JúnNed1+12)=KalendárnyRok,MONTH(JúnNed1+12)=6),JúnNed1+12,\"\"))","v":"2020-06-12"},{"$f":"IF(DAY(JúnNed1)=1,IF(AND(YEAR(JúnNed1+6)=KalendárnyRok,MONTH(JúnNed1+6)=6),JúnNed1+6,\"\"),IF(AND(YEAR(JúnNed1+13)=KalendárnyRok,MONTH(JúnNed1+13)=6),JúnNed1+13,\"\"))","v":"2020-06-13"},{"$f":"IF(DAY(JúnNed1)=1,IF(AND(YEAR(JúnNed1+7)=KalendárnyRok,MONTH(JúnNed1+7)=6),JúnNed1+7,\"\"),IF(AND(YEAR(JúnNed1+14)=KalendárnyRok,MONTH(JúnNed1+14)=6),JúnNed1+14,\"\"))","v":"2020-06-14"}]
[null,null,{"$f":"IF(DAY(MájNed1)=1,IF(AND(YEAR(MájNed1+8)=KalendárnyRok,MONTH(MájNed1+8)=5),MájNed1+8,\"\"),IF(AND(YEAR(MájNed1+15)=KalendárnyRok,MONTH(MájNed1+15)=5),MájNed1+15,\"\"))","v":"2020-05-11"},{"$f":"IF(DAY(MájNed1)=1,IF(AND(YEAR(MájNed1+9)=KalendárnyRok,MONTH(MájNed1+9)=5),MájNed1+9,\"\"),IF(AND(YEAR(MájNed1+16)=KalendárnyRok,MONTH(MájNed1+16)=5),MájNed1+16,\"\"))","v":"2020-05-12"},{"$f":"IF(DAY(MájNed1)=1,IF(AND(YEAR(MájNed1+10)=KalendárnyRok,MONTH(MájNed1+10)=5),MájNed1+10,\"\"),IF(AND(YEAR(MájNed1+17)=KalendárnyRok,MONTH(MájNed1+17)=5),MájNed1+17,\"\"))","v":"2020-05-13"},{"$f":"IF(DAY(MájNed1)=1,IF(AND(YEAR(MájNed1+11)=KalendárnyRok,MONTH(MájNed1+11)=5),MájNed1+11,\"\"),IF(AND(YEAR(MájNed1+18)=KalendárnyRok,MONTH(MájNed1+18)=5),MájNed1+18,\"\"))","v":"2020-05-14"},{"$f":"IF(DAY(MájNed1)=1,IF(AND(YEAR(MájNed1+12)=KalendárnyRok,MONTH(MájNed1+12)=5),MájNed1+12,\"\"),IF(AND(YEAR(MájNed1+19)=KalendárnyRok,MONTH(MájNed1+19)=5),MájNed1+19,\"\"))","v":"2020-05-15"},{"$f":"IF(DAY(MájNed1)=1,IF(AND(YEAR(MájNed1+13)=KalendárnyRok,MONTH(MájNed1+13)=5),MájNed1+13,\"\"),IF(AND(YEAR(MájNed1+20)=KalendárnyRok,MONTH(MájNed1+20)=5),MájNed1+20,\"\"))","v":"2020-05-16"},{"$f":"IF(DAY(MájNed1)=1,IF(AND(YEAR(MájNed1+14)=KalendárnyRok,MONTH(MájNed1+14)=5),MájNed1+14,\"\"),IF(AND(YEAR(MájNed1+21)=KalendárnyRok,MONTH(MájNed1+21)=5),MájNed1+21,\"\"))","v":"2020-05-17"},null,{"$f":"IF(DAY(JúnNed1)=1,IF(AND(YEAR(JúnNed1+8)=KalendárnyRok,MONTH(JúnNed1+8)=6),JúnNed1+8,\"\"),IF(AND(YEAR(JúnNed1+15)=KalendárnyRok,MONTH(JúnNed1+15)=6),JúnNed1+15,\"\"))","v":"2020-06-15"},{"$f":"IF(DAY(JúnNed1)=1,IF(AND(YEAR(JúnNed1+9)=KalendárnyRok,MONTH(JúnNed1+9)=6),JúnNed1+9,\"\"),IF(AND(YEAR(JúnNed1+16)=KalendárnyRok,MONTH(JúnNed1+16)=6),JúnNed1+16,\"\"))","v":"2020-06-16"},{"$f":"IF(DAY(JúnNed1)=1,IF(AND(YEAR(JúnNed1+10)=KalendárnyRok,MONTH(JúnNed1+10)=6),JúnNed1+10,\"\"),IF(AND(YEAR(JúnNed1+17)=KalendárnyRok,MONTH(JúnNed1+17)=6),JúnNed1+17,\"\"))","v":"2020-06-17"},{"$f":"IF(DAY(JúnNed1)=1,IF(AND(YEAR(JúnNed1+11)=KalendárnyRok,MONTH(JúnNed1+11)=6),JúnNed1+11,\"\"),IF(AND(YEAR(JúnNed1+18)=KalendárnyRok,MONTH(JúnNed1+18)=6),JúnNed1+18,\"\"))","v":"2020-06-18"},{"$f":"IF(DAY(JúnNed1)=1,IF(AND(YEAR(JúnNed1+12)=KalendárnyRok,MONTH(JúnNed1+12)=6),JúnNed1+12,\"\"),IF(AND(YEAR(JúnNed1+19)=KalendárnyRok,MONTH(JúnNed1+19)=6),JúnNed1+19,\"\"))","v":"2020-06-19"},{"$f":"IF(DAY(JúnNed1)=1,IF(AND(YEAR(JúnNed1+13)=KalendárnyRok,MONTH(JúnNed1+13)=6),JúnNed1+13,\"\"),IF(AND(YEAR(JúnNed1+20)=KalendárnyRok,MONTH(JúnNed1+20)=6),JúnNed1+20,\"\"))","v":"2020-06-20"},{"$f":"IF(DAY(JúnNed1)=1,IF(AND(YEAR(JúnNed1+14)=KalendárnyRok,MONTH(JúnNed1+14)=6),JúnNed1+14,\"\"),IF(AND(YEAR(JúnNed1+21)=KalendárnyRok,MONTH(JúnNed1+21)=6),JúnNed1+21,\"\"))","v":"2020-06-21"}]
[null,null,{"$f":"IF(DAY(MájNed1)=1,IF(AND(YEAR(MájNed1+15)=KalendárnyRok,MONTH(MájNed1+15)=5),MájNed1+15,\"\"),IF(AND(YEAR(MájNed1+22)=KalendárnyRok,MONTH(MájNed1+22)=5),MájNed1+22,\"\"))","v":"2020-05-18"},{"$f":"IF(DAY(MájNed1)=1,IF(AND(YEAR(MájNed1+16)=KalendárnyRok,MONTH(MájNed1+16)=5),MájNed1+16,\"\"),IF(AND(YEAR(MájNed1+23)=KalendárnyRok,MONTH(MájNed1+23)=5),MájNed1+23,\"\"))","v":"2020-05-19"},{"$f":"IF(DAY(MájNed1)=1,IF(AND(YEAR(MájNed1+17)=KalendárnyRok,MONTH(MájNed1+17)=5),MájNed1+17,\"\"),IF(AND(YEAR(MájNed1+24)=KalendárnyRok,MONTH(MájNed1+24)=5),MájNed1+24,\"\"))","v":"2020-05-20"},{"$f":"IF(DAY(MájNed1)=1,IF(AND(YEAR(MájNed1+18)=KalendárnyRok,MONTH(MájNed1+18)=5),MájNed1+18,\"\"),IF(AND(YEAR(MájNed1+25)=KalendárnyRok,MONTH(MájNed1+25)=5),MájNed1+25,\"\"))","v":"2020-05-21"},{"$f":"IF(DAY(MájNed1)=1,IF(AND(YEAR(MájNed1+19)=KalendárnyRok,MONTH(MájNed1+19)=5),MájNed1+19,\"\"),IF(AND(YEAR(MájNed1+26)=KalendárnyRok,MONTH(MájNed1+26)=5),MájNed1+26,\"\"))","v":"2020-05-22"},{"$f":"IF(DAY(MájNed1)=1,IF(AND(YEAR(MájNed1+20)=KalendárnyRok,MONTH(MájNed1+20)=5),MájNed1+20,\"\"),IF(AND(YEAR(MájNed1+27)=KalendárnyRok,MONTH(MájNed1+27)=5),MájNed1+27,\"\"))","v":"2020-05-23"},{"$f":"IF(DAY(MájNed1)=1,IF(AND(YEAR(MájNed1+21)=KalendárnyRok,MONTH(MájNed1+21)=5),MájNed1+21,\"\"),IF(AND(YEAR(MájNed1+28)=KalendárnyRok,MONTH(MájNed1+28)=5),MájNed1+28,\"\"))","v":"2020-05-24"},null,{"$f":"IF(DAY(JúnNed1)=1,IF(AND(YEAR(JúnNed1+15)=KalendárnyRok,MONTH(JúnNed1+15)=6),JúnNed1+15,\"\"),IF(AND(YEAR(JúnNed1+22)=KalendárnyRok,MONTH(JúnNed1+22)=6),JúnNed1+22,\"\"))","v":"2020-06-22"},{"$f":"IF(DAY(JúnNed1)=1,IF(AND(YEAR(JúnNed1+16)=KalendárnyRok,MONTH(JúnNed1+16)=6),JúnNed1+16,\"\"),IF(AND(YEAR(JúnNed1+23)=KalendárnyRok,MONTH(JúnNed1+23)=6),JúnNed1+23,\"\"))","v":"2020-06-23"},{"$f":"IF(DAY(JúnNed1)=1,IF(AND(YEAR(JúnNed1+17)=KalendárnyRok,MONTH(JúnNed1+17)=6),JúnNed1+17,\"\"),IF(AND(YEAR(JúnNed1+24)=KalendárnyRok,MONTH(JúnNed1+24)=6),JúnNed1+24,\"\"))","v":"2020-06-24"},{"$f":"IF(DAY(JúnNed1)=1,IF(AND(YEAR(JúnNed1+18)=KalendárnyRok,MONTH(JúnNed1+18)=6),JúnNed1+18,\"\"),IF(AND(YEAR(JúnNed1+25)=KalendárnyRok,MONTH(JúnNed1+25)=6),JúnNed1+25,\"\"))","v":"2020-06-25"},{"$f":"IF(DAY(JúnNed1)=1,IF(AND(YEAR(JúnNed1+19)=KalendárnyRok,MONTH(JúnNed1+19)=6),JúnNed1+19,\"\"),IF(AND(YEAR(JúnNed1+26)=KalendárnyRok,MONTH(JúnNed1+26)=6),JúnNed1+26,\"\"))","v":"2020-06-26"},{"$f":"IF(DAY(JúnNed1)=1,IF(AND(YEAR(JúnNed1+20)=KalendárnyRok,MONTH(JúnNed1+20)=6),JúnNed1+20,\"\"),IF(AND(YEAR(JúnNed1+27)=KalendárnyRok,MONTH(JúnNed1+27)=6),JúnNed1+27,\"\"))","v":"2020-06-27"},{"$f":"IF(DAY(JúnNed1)=1,IF(AND(YEAR(JúnNed1+21)=KalendárnyRok,MONTH(JúnNed1+21)=6),JúnNed1+21,\"\"),IF(AND(YEAR(JúnNed1+28)=KalendárnyRok,MONTH(JúnNed1+28)=6),JúnNed1+28,\"\"))","v":"2020-06-28"}]
[null,null,{"$f":"IF(DAY(MájNed1)=1,IF(AND(YEAR(MájNed1+22)=KalendárnyRok,MONTH(MájNed1+22)=5),MájNed1+22,\"\"),IF(AND(YEAR(MájNed1+29)=KalendárnyRok,MONTH(MájNed1+29)=5),MájNed1+29,\"\"))","v":"2020-05-25"},{"$f":"IF(DAY(MájNed1)=1,IF(AND(YEAR(MájNed1+23)=KalendárnyRok,MONTH(MájNed1+23)=5),MájNed1+23,\"\"),IF(AND(YEAR(MájNed1+30)=KalendárnyRok,MONTH(MájNed1+30)=5),MájNed1+30,\"\"))","v":"2020-05-26"},{"$f":"IF(DAY(MájNed1)=1,IF(AND(YEAR(MájNed1+24)=KalendárnyRok,MONTH(MájNed1+24)=5),MájNed1+24,\"\"),IF(AND(YEAR(MájNed1+31)=KalendárnyRok,MONTH(MájNed1+31)=5),MájNed1+31,\"\"))","v":"2020-05-27"},{"$f":"IF(DAY(MájNed1)=1,IF(AND(YEAR(MájNed1+25)=KalendárnyRok,MONTH(MájNed1+25)=5),MájNed1+25,\"\"),IF(AND(YEAR(MájNed1+32)=KalendárnyRok,MONTH(MájNed1+32)=5),MájNed1+32,\"\"))","v":"2020-05-28"},{"$f":"IF(DAY(MájNed1)=1,IF(AND(YEAR(MájNed1+26)=KalendárnyRok,MONTH(MájNed1+26)=5),MájNed1+26,\"\"),IF(AND(YEAR(MájNed1+33)=KalendárnyRok,MONTH(MájNed1+33)=5),MájNed1+33,\"\"))","v":"2020-05-29"},{"$f":"IF(DAY(MájNed1)=1,IF(AND(YEAR(MájNed1+27)=KalendárnyRok,MONTH(MájNed1+27)=5),MájNed1+27,\"\"),IF(AND(YEAR(MájNed1+34)=KalendárnyRok,MONTH(MájNed1+34)=5),MájNed1+34,\"\"))","v":"2020-05-30"},{"$f":"IF(DAY(MájNed1)=1,IF(AND(YEAR(MájNed1+28)=KalendárnyRok,MONTH(MájNed1+28)=5),MájNed1+28,\"\"),IF(AND(YEAR(MájNed1+35)=KalendárnyRok,MONTH(MájNed1+35)=5),MájNed1+35,\"\"))","v":"2020-05-31"},null,{"$f":"IF(DAY(JúnNed1)=1,IF(AND(YEAR(JúnNed1+22)=KalendárnyRok,MONTH(JúnNed1+22)=6),JúnNed1+22,\"\"),IF(AND(YEAR(JúnNed1+29)=KalendárnyRok,MONTH(JúnNed1+29)=6),JúnNed1+29,\"\"))","v":"2020-06-29"},{"$f":"IF(DAY(JúnNed1)=1,IF(AND(YEAR(JúnNed1+23)=KalendárnyRok,MONTH(JúnNed1+23)=6),JúnNed1+23,\"\"),IF(AND(YEAR(JúnNed1+30)=KalendárnyRok,MONTH(JúnNed1+30)=6),JúnNed1+30,\"\"))","v":"2020-06-30"},{"$f":"IF(DAY(JúnNed1)=1,IF(AND(YEAR(JúnNed1+24)=KalendárnyRok,MONTH(JúnNed1+24)=6),JúnNed1+24,\"\"),IF(AND(YEAR(JúnNed1+31)=KalendárnyRok,MONTH(JúnNed1+31)=6),JúnNed1+31,\"\"))","v":""},{"$f":"IF(DAY(JúnNed1)=1,IF(AND(YEAR(JúnNed1+25)=KalendárnyRok,MONTH(JúnNed1+25)=6),JúnNed1+25,\"\"),IF(AND(YEAR(JúnNed1+32)=KalendárnyRok,MONTH(JúnNed1+32)=6),JúnNed1+32,\"\"))","v":""},{"$f":"IF(DAY(JúnNed1)=1,IF(AND(YEAR(JúnNed1+26)=KalendárnyRok,MONTH(JúnNed1+26)=6),JúnNed1+26,\"\"),IF(AND(YEAR(JúnNed1+33)=KalendárnyRok,MONTH(JúnNed1+33)=6),JúnNed1+33,\"\"))","v":""},{"$f":"IF(DAY(JúnNed1)=1,IF(AND(YEAR(JúnNed1+27)=KalendárnyRok,MONTH(JúnNed1+27)=6),JúnNed1+27,\"\"),IF(AND(YEAR(JúnNed1+34)=KalendárnyRok,MONTH(JúnNed1+34)=6),JúnNed1+34,\"\"))","v":""},{"$f":"IF(DAY(JúnNed1)=1,IF(AND(YEAR(JúnNed1+28)=KalendárnyRok,MONTH(JúnNed1+28)=6),JúnNed1+28,\"\"),IF(AND(YEAR(JúnNed1+35)=KalendárnyRok,MONTH(JúnNed1+35)=6),JúnNed1+35,\"\"))","v":""}]
[null,null,{"$f":"IF(DAY(MájNed1)=1,IF(AND(YEAR(MájNed1+29)=KalendárnyRok,MONTH(MájNed1+29)=5),MájNed1+29,\"\"),IF(AND(YEAR(MájNed1+36)=KalendárnyRok,MONTH(MájNed1+36)=5),MájNed1+36,\"\"))","v":""},{"$f":"IF(DAY(MájNed1)=1,IF(AND(YEAR(MájNed1+30)=KalendárnyRok,MONTH(MájNed1+30)=5),MájNed1+30,\"\"),IF(AND(YEAR(MájNed1+37)=KalendárnyRok,MONTH(MájNed1+37)=5),MájNed1+37,\"\"))","v":""},{"$f":"IF(DAY(MájNed1)=1,IF(AND(YEAR(MájNed1+31)=KalendárnyRok,MONTH(MájNed1+31)=5),MájNed1+31,\"\"),IF(AND(YEAR(MájNed1+38)=KalendárnyRok,MONTH(MájNed1+38)=5),MájNed1+38,\"\"))","v":""},{"$f":"IF(DAY(MájNed1)=1,IF(AND(YEAR(MájNed1+32)=KalendárnyRok,MONTH(MájNed1+32)=5),MájNed1+32,\"\"),IF(AND(YEAR(MájNed1+39)=KalendárnyRok,MONTH(MájNed1+39)=5),MájNed1+39,\"\"))","v":""},{"$f":"IF(DAY(MájNed1)=1,IF(AND(YEAR(MájNed1+33)=KalendárnyRok,MONTH(MájNed1+33)=5),MájNed1+33,\"\"),IF(AND(YEAR(MájNed1+40)=KalendárnyRok,MONTH(MájNed1+40)=5),MájNed1+40,\"\"))","v":""},{"$f":"IF(DAY(MájNed1)=1,IF(AND(YEAR(MájNed1+34)=KalendárnyRok,MONTH(MájNed1+34)=5),MájNed1+34,\"\"),IF(AND(YEAR(MájNed1+41)=KalendárnyRok,MONTH(MájNed1+41)=5),MájNed1+41,\"\"))","v":""},{"$f":"IF(DAY(MájNed1)=1,IF(AND(YEAR(MájNed1+35)=KalendárnyRok,MONTH(MájNed1+35)=5),MájNed1+35,\"\"),IF(AND(YEAR(MájNed1+42)=KalendárnyRok,MONTH(MájNed1+42)=5),MájNed1+42,\"\"))","v":""},null,{"$f":"IF(DAY(JúnNed1)=1,IF(AND(YEAR(JúnNed1+29)=KalendárnyRok,MONTH(JúnNed1+29)=6),JúnNed1+29,\"\"),IF(AND(YEAR(JúnNed1+36)=KalendárnyRok,MONTH(JúnNed1+36)=6),JúnNed1+36,\"\"))","v":""},{"$f":"IF(DAY(JúnNed1)=1,IF(AND(YEAR(JúnNed1+30)=KalendárnyRok,MONTH(JúnNed1+30)=6),JúnNed1+30,\"\"),IF(AND(YEAR(JúnNed1+37)=KalendárnyRok,MONTH(JúnNed1+37)=6),JúnNed1+37,\"\"))","v":""},{"$f":"IF(DAY(JúnNed1)=1,IF(AND(YEAR(JúnNed1+31)=KalendárnyRok,MONTH(JúnNed1+31)=6),JúnNed1+31,\"\"),IF(AND(YEAR(JúnNed1+38)=KalendárnyRok,MONTH(JúnNed1+38)=6),JúnNed1+38,\"\"))","v":""},{"$f":"IF(DAY(JúnNed1)=1,IF(AND(YEAR(JúnNed1+32)=KalendárnyRok,MONTH(JúnNed1+32)=6),JúnNed1+32,\"\"),IF(AND(YEAR(JúnNed1+39)=KalendárnyRok,MONTH(JúnNed1+39)=6),JúnNed1+39,\"\"))","v":""},{"$f":"IF(DAY(JúnNed1)=1,IF(AND(YEAR(JúnNed1+33)=KalendárnyRok,MONTH(JúnNed1+33)=6),JúnNed1+33,\"\"),IF(AND(YEAR(JúnNed1+40)=KalendárnyRok,MONTH(JúnNed1+40)=6),JúnNed1+40,\"\"))","v":""},{"$f":"IF(DAY(JúnNed1)=1,IF(AND(YEAR(JúnNed1+34)=KalendárnyRok,MONTH(JúnNed1+34)=6),JúnNed1+34,\"\"),IF(AND(YEAR(JúnNed1+41)=KalendárnyRok,MONTH(JúnNed1+41)=6),JúnNed1+41,\"\"))","v":""},{"$f":"IF(DAY(JúnNed1)=1,IF(AND(YEAR(JúnNed1+35)=KalendárnyRok,MONTH(JúnNed1+35)=6),JúnNed1+35,\"\"),IF(AND(YEAR(JúnNed1+42)=KalendárnyRok,MONTH(JúnNed1+42)=6),JúnNed1+42,\"\"))","v":""}]
[]
["V bunke C30 je označenie Júl a v bunke K30 je označenie August.",null,"JÚL",{"$nulls":7},"AUGUST"]
["V bunkách C31 až I37 je tabuľka kalendára na júl a v bunkách K31 až Q37 je tabuľka kalendára na august. V bunke A39 je ďalší pokyn.",null,"PO","UT","ST","ŠT","PI","SO","NE",null,"PO","UT","ST","ŠT","PI","SO","NE"]
[null,null,{"$f":"IF(DAY(JúlNed1)=1,\"\",IF(AND(YEAR(JúlNed1+1)=KalendárnyRok,MONTH(JúlNed1+1)=7),JúlNed1+1,\"\"))","v":""},{"$f":"IF(DAY(JúlNed1)=1,\"\",IF(AND(YEAR(JúlNed1+2)=KalendárnyRok,MONTH(JúlNed1+2)=7),JúlNed1+2,\"\"))","v":""},{"$f":"IF(DAY(JúlNed1)=1,\"\",IF(AND(YEAR(JúlNed1+3)=KalendárnyRok,MONTH(JúlNed1+3)=7),JúlNed1+3,\"\"))","v":"2020-07-01"},{"$f":"IF(DAY(JúlNed1)=1,\"\",IF(AND(YEAR(JúlNed1+4)=KalendárnyRok,MONTH(JúlNed1+4)=7),JúlNed1+4,\"\"))","v":"2020-07-02"},{"$f":"IF(DAY(JúlNed1)=1,\"\",IF(AND(YEAR(JúlNed1+5)=KalendárnyRok,MONTH(JúlNed1+5)=7),JúlNed1+5,\"\"))","v":"2020-07-03"},{"$f":"IF(DAY(JúlNed1)=1,\"\",IF(AND(YEAR(JúlNed1+6)=KalendárnyRok,MONTH(JúlNed1+6)=7),JúlNed1+6,\"\"))","v":"2020-07-04"},{"$f":"IF(DAY(JúlNed1)=1,IF(AND(YEAR(JúlNed1)=KalendárnyRok,MONTH(JúlNed1)=7),JúlNed1,\"\"),IF(AND(YEAR(JúlNed1+7)=KalendárnyRok,MONTH(JúlNed1+7)=7),JúlNed1+7,\"\"))","v":"2020-07-05"},null,{"$f":"IF(DAY(AugNed1)=1,\"\",IF(AND(YEAR(AugNed1+1)=KalendárnyRok,MONTH(AugNed1+1)=8),AugNed1+1,\"\"))","v":""},{"$f":"IF(DAY(AugNed1)=1,\"\",IF(AND(YEAR(AugNed1+2)=KalendárnyRok,MONTH(AugNed1+2)=8),AugNed1+2,\"\"))","v":""},{"$f":"IF(DAY(AugNed1)=1,\"\",IF(AND(YEAR(AugNed1+3)=KalendárnyRok,MONTH(AugNed1+3)=8),AugNed1+3,\"\"))","v":""},{"$f":"IF(DAY(AugNed1)=1,\"\",IF(AND(YEAR(AugNed1+4)=KalendárnyRok,MONTH(AugNed1+4)=8),AugNed1+4,\"\"))","v":""},{"$f":"IF(DAY(AugNed1)=1,\"\",IF(AND(YEAR(AugNed1+5)=KalendárnyRok,MONTH(AugNed1+5)=8),AugNed1+5,\"\"))","v":""},{"$f":"IF(DAY(AugNed1)=1,\"\",IF(AND(YEAR(AugNed1+6)=KalendárnyRok,MONTH(AugNed1+6)=8),AugNed1+6,\"\"))","v":"2020-08-01"},{"$f":"IF(DAY(AugNed1)=1,IF(AND(YEAR(AugNed1)=KalendárnyRok,MONTH(AugNed1)=8),AugNed1,\"\"),IF(AND(YEAR(AugNed1+7)=KalendárnyRok,MONTH(AugNed1+7)=8),AugNed1+7,\"\"))","v":"2020-08-02"}]
[null,null,{"$f":"IF(DAY(JúlNed1)=1,IF(AND(YEAR(JúlNed1+1)=KalendárnyRok,MONTH(JúlNed1+1)=7),JúlNed1+1,\"\"),IF(AND(YEAR(JúlNed1+8)=KalendárnyRok,MONTH(JúlNed1+8)=7),JúlNed1+8,\"\"))","v":"2020-07-06"},{"$f":"IF(DAY(JúlNed1)=1,IF(AND(YEAR(JúlNed1+2)=KalendárnyRok,MONTH(JúlNed1+2)=7),JúlNed1+2,\"\"),IF(AND(YEAR(JúlNed1+9)=KalendárnyRok,MONTH(JúlNed1+9)=7),JúlNed1+9,\"\"))","v":"2020-07-07"},{"$f":"IF(DAY(JúlNed1)=1,IF(AND(YEAR(JúlNed1+3)=KalendárnyRok,MONTH(JúlNed1+3)=7),JúlNed1+3,\"\"),IF(AND(YEAR(JúlNed1+10)=KalendárnyRok,MONTH(JúlNed1+10)=7),JúlNed1+10,\"\"))","v":"2020-07-08"},{"$f":"IF(DAY(JúlNed1)=1,IF(AND(YEAR(JúlNed1+4)=KalendárnyRok,MONTH(JúlNed1+4)=7),JúlNed1+4,\"\"),IF(AND(YEAR(JúlNed1+11)=KalendárnyRok,MONTH(JúlNed1+11)=7),JúlNed1+11,\"\"))","v":"2020-07-09"},{"$f":"IF(DAY(JúlNed1)=1,IF(AND(YEAR(JúlNed1+5)=KalendárnyRok,MONTH(JúlNed1+5)=7),JúlNed1+5,\"\"),IF(AND(YEAR(JúlNed1+12)=KalendárnyRok,MONTH(JúlNed1+12)=7),JúlNed1+12,\"\"))","v":"2020-07-10"},{"$f":"IF(DAY(JúlNed1)=1,IF(AND(YEAR(JúlNed1+6)=KalendárnyRok,MONTH(JúlNed1+6)=7),JúlNed1+6,\"\"),IF(AND(YEAR(JúlNed1+13)=KalendárnyRok,MONTH(JúlNed1+13)=7),JúlNed1+13,\"\"))","v":"2020-07-11"},{"$f":"IF(DAY(JúlNed1)=1,IF(AND(YEAR(JúlNed1+7)=KalendárnyRok,MONTH(JúlNed1+7)=7),JúlNed1+7,\"\"),IF(AND(YEAR(JúlNed1+14)=KalendárnyRok,MONTH(JúlNed1+14)=7),JúlNed1+14,\"\"))","v":"2020-07-12"},null,{"$f":"IF(DAY(AugNed1)=1,IF(AND(YEAR(AugNed1+1)=KalendárnyRok,MONTH(AugNed1+1)=8),AugNed1+1,\"\"),IF(AND(YEAR(AugNed1+8)=KalendárnyRok,MONTH(AugNed1+8)=8),AugNed1+8,\"\"))","v":"2020-08-03"},{"$f":"IF(DAY(AugNed1)=1,IF(AND(YEAR(AugNed1+2)=KalendárnyRok,MONTH(AugNed1+2)=8),AugNed1+2,\"\"),IF(AND(YEAR(AugNed1+9)=KalendárnyRok,MONTH(AugNed1+9)=8),AugNed1+9,\"\"))","v":"2020-08-04"},{"$f":"IF(DAY(AugNed1)=1,IF(AND(YEAR(AugNed1+3)=KalendárnyRok,MONTH(AugNed1+3)=8),AugNed1+3,\"\"),IF(AND(YEAR(AugNed1+10)=KalendárnyRok,MONTH(AugNed1+10)=8),AugNed1+10,\"\"))","v":"2020-08-05"},{"$f":"IF(DAY(AugNed1)=1,IF(AND(YEAR(AugNed1+4)=KalendárnyRok,MONTH(AugNed1+4)=8),AugNed1+4,\"\"),IF(AND(YEAR(AugNed1+11)=KalendárnyRok,MONTH(AugNed1+11)=8),AugNed1+11,\"\"))","v":"2020-08-06"},{"$f":"IF(DAY(AugNed1)=1,IF(AND(YEAR(AugNed1+5)=KalendárnyRok,MONTH(AugNed1+5)=8),AugNed1+5,\"\"),IF(AND(YEAR(AugNed1+12)=KalendárnyRok,MONTH(AugNed1+12)=8),AugNed1+12,\"\"))","v":"2020-08-07"},{"$f":"IF(DAY(AugNed1)=1,IF(AND(YEAR(AugNed1+6)=KalendárnyRok,MONTH(AugNed1+6)=8),AugNed1+6,\"\"),IF(AND(YEAR(AugNed1+13)=KalendárnyRok,MONTH(AugNed1+13)=8),AugNed1+13,\"\"))","v":"2020-08-08"},{"$f":"IF(DAY(AugNed1)=1,IF(AND(YEAR(AugNed1+7)=KalendárnyRok,MONTH(AugNed1+7)=8),AugNed1+7,\"\"),IF(AND(YEAR(AugNed1+14)=KalendárnyRok,MONTH(AugNed1+14)=8),AugNed1+14,\"\"))","v":"2020-08-09"}]
[null,null,{"$f":"IF(DAY(JúlNed1)=1,IF(AND(YEAR(JúlNed1+8)=KalendárnyRok,MONTH(JúlNed1+8)=7),JúlNed1+8,\"\"),IF(AND(YEAR(JúlNed1+15)=KalendárnyRok,MONTH(JúlNed1+15)=7),JúlNed1+15,\"\"))","v":"2020-07-13"},{"$f":"IF(DAY(JúlNed1)=1,IF(AND(YEAR(JúlNed1+9)=KalendárnyRok,MONTH(JúlNed1+9)=7),JúlNed1+9,\"\"),IF(AND(YEAR(JúlNed1+16)=KalendárnyRok,MONTH(JúlNed1+16)=7),JúlNed1+16,\"\"))","v":"2020-07-14"},{"$f":"IF(DAY(JúlNed1)=1,IF(AND(YEAR(JúlNed1+10)=KalendárnyRok,MONTH(JúlNed1+10)=7),JúlNed1+10,\"\"),IF(AND(YEAR(JúlNed1+17)=KalendárnyRok,MONTH(JúlNed1+17)=7),JúlNed1+17,\"\"))","v":"2020-07-15"},{"$f":"IF(DAY(JúlNed1)=1,IF(AND(YEAR(JúlNed1+11)=KalendárnyRok,MONTH(JúlNed1+11)=7),JúlNed1+11,\"\"),IF(AND(YEAR(JúlNed1+18)=KalendárnyRok,MONTH(JúlNed1+18)=7),JúlNed1+18,\"\"))","v":"2020-07-16"},{"$f":"IF(DAY(JúlNed1)=1,IF(AND(YEAR(JúlNed1+12)=KalendárnyRok,MONTH(JúlNed1+12)=7),JúlNed1+12,\"\"),IF(AND(YEAR(JúlNed1+19)=KalendárnyRok,MONTH(JúlNed1+19)=7),JúlNed1+19,\"\"))","v":"2020-07-17"},{"$f":"IF(DAY(JúlNed1)=1,IF(AND(YEAR(JúlNed1+13)=KalendárnyRok,MONTH(JúlNed1+13)=7),JúlNed1+13,\"\"),IF(AND(YEAR(JúlNed1+20)=KalendárnyRok,MONTH(JúlNed1+20)=7),JúlNed1+20,\"\"))","v":"2020-07-18"},{"$f":"IF(DAY(JúlNed1)=1,IF(AND(YEAR(JúlNed1+14)=KalendárnyRok,MONTH(JúlNed1+14)=7),JúlNed1+14,\"\"),IF(AND(YEAR(JúlNed1+21)=KalendárnyRok,MONTH(JúlNed1+21)=7),JúlNed1+21,\"\"))","v":"2020-07-19"},null,{"$f":"IF(DAY(AugNed1)=1,IF(AND(YEAR(AugNed1+8)=KalendárnyRok,MONTH(AugNed1+8)=8),AugNed1+8,\"\"),IF(AND(YEAR(AugNed1+15)=KalendárnyRok,MONTH(AugNed1+15)=8),AugNed1+15,\"\"))","v":"2020-08-10"},{"$f":"IF(DAY(AugNed1)=1,IF(AND(YEAR(AugNed1+9)=KalendárnyRok,MONTH(AugNed1+9)=8),AugNed1+9,\"\"),IF(AND(YEAR(AugNed1+16)=KalendárnyRok,MONTH(AugNed1+16)=8),AugNed1+16,\"\"))","v":"2020-08-11"},{"$f":"IF(DAY(AugNed1)=1,IF(AND(YEAR(AugNed1+10)=KalendárnyRok,MONTH(AugNed1+10)=8),AugNed1+10,\"\"),IF(AND(YEAR(AugNed1+17)=KalendárnyRok,MONTH(AugNed1+17)=8),AugNed1+17,\"\"))","v":"2020-08-12"},{"$f":"IF(DAY(AugNed1)=1,IF(AND(YEAR(AugNed1+11)=KalendárnyRok,MONTH(AugNed1+11)=8),AugNed1+11,\"\"),IF(AND(YEAR(AugNed1+18)=KalendárnyRok,MONTH(AugNed1+18)=8),AugNed1+18,\"\"))","v":"2020-08-13"},{"$f":"IF(DAY(AugNed1)=1,IF(AND(YEAR(AugNed1+12)=KalendárnyRok,MONTH(AugNed1+12)=8),AugNed1+12,\"\"),IF(AND(YEAR(AugNed1+19)=KalendárnyRok,MONTH(AugNed1+19)=8),AugNed1+19,\"\"))","v":"2020-08-14"},{"$f":"IF(DAY(AugNed1)=1,IF(AND(YEAR(AugNed1+13)=KalendárnyRok,MONTH(AugNed1+13)=8),AugNed1+13,\"\"),IF(AND(YEAR(AugNed1+20)=KalendárnyRok,MONTH(AugNed1+20)=8),AugNed1+20,\"\"))","v":"2020-08-15"},{"$f":"IF(DAY(AugNed1)=1,IF(AND(YEAR(AugNed1+14)=KalendárnyRok,MONTH(AugNed1+14)=8),AugNed1+14,\"\"),IF(AND(YEAR(AugNed1+21)=KalendárnyRok,MONTH(AugNed1+21)=8),AugNed1+21,\"\"))","v":"2020-08-16"}]
[null,null,{"$f":"IF(DAY(JúlNed1)=1,IF(AND(YEAR(JúlNed1+15)=KalendárnyRok,MONTH(JúlNed1+15)=7),JúlNed1+15,\"\"),IF(AND(YEAR(JúlNed1+22)=KalendárnyRok,MONTH(JúlNed1+22)=7),JúlNed1+22,\"\"))","v":"2020-07-20"},{"$f":"IF(DAY(JúlNed1)=1,IF(AND(YEAR(JúlNed1+16)=KalendárnyRok,MONTH(JúlNed1+16)=7),JúlNed1+16,\"\"),IF(AND(YEAR(JúlNed1+23)=KalendárnyRok,MONTH(JúlNed1+23)=7),JúlNed1+23,\"\"))","v":"2020-07-21"},{"$f":"IF(DAY(JúlNed1)=1,IF(AND(YEAR(JúlNed1+17)=KalendárnyRok,MONTH(JúlNed1+17)=7),JúlNed1+17,\"\"),IF(AND(YEAR(JúlNed1+24)=KalendárnyRok,MONTH(JúlNed1+24)=7),JúlNed1+24,\"\"))","v":"2020-07-22"},{"$f":"IF(DAY(JúlNed1)=1,IF(AND(YEAR(JúlNed1+18)=KalendárnyRok,MONTH(JúlNed1+18)=7),JúlNed1+18,\"\"),IF(AND(YEAR(JúlNed1+25)=KalendárnyRok,MONTH(JúlNed1+25)=7),JúlNed1+25,\"\"))","v":"2020-07-23"},{"$f":"IF(DAY(JúlNed1)=1,IF(AND(YEAR(JúlNed1+19)=KalendárnyRok,MONTH(JúlNed1+19)=7),JúlNed1+19,\"\"),IF(AND(YEAR(JúlNed1+26)=KalendárnyRok,MONTH(JúlNed1+26)=7),JúlNed1+26,\"\"))","v":"2020-07-24"},{"$f":"IF(DAY(JúlNed1)=1,IF(AND(YEAR(JúlNed1+20)=KalendárnyRok,MONTH(JúlNed1+20)=7),JúlNed1+20,\"\"),IF(AND(YEAR(JúlNed1+27)=KalendárnyRok,MONTH(JúlNed1+27)=7),JúlNed1+27,\"\"))","v":"2020-07-25"},{"$f":"IF(DAY(JúlNed1)=1,IF(AND(YEAR(JúlNed1+21)=KalendárnyRok,MONTH(JúlNed1+21)=7),JúlNed1+21,\"\"),IF(AND(YEAR(JúlNed1+28)=KalendárnyRok,MONTH(JúlNed1+28)=7),JúlNed1+28,\"\"))","v":"2020-07-26"},null,{"$f":"IF(DAY(AugNed1)=1,IF(AND(YEAR(AugNed1+15)=KalendárnyRok,MONTH(AugNed1+15)=8),AugNed1+15,\"\"),IF(AND(YEAR(AugNed1+22)=KalendárnyRok,MONTH(AugNed1+22)=8),AugNed1+22,\"\"))","v":"2020-08-17"},{"$f":"IF(DAY(AugNed1)=1,IF(AND(YEAR(AugNed1+16)=KalendárnyRok,MONTH(AugNed1+16)=8),AugNed1+16,\"\"),IF(AND(YEAR(AugNed1+23)=KalendárnyRok,MONTH(AugNed1+23)=8),AugNed1+23,\"\"))","v":"2020-08-18"},{"$f":"IF(DAY(AugNed1)=1,IF(AND(YEAR(AugNed1+17)=KalendárnyRok,MONTH(AugNed1+17)=8),AugNed1+17,\"\"),IF(AND(YEAR(AugNed1+24)=KalendárnyRok,MONTH(AugNed1+24)=8),AugNed1+24,\"\"))","v":"2020-08-19"},{"$f":"IF(DAY(AugNed1)=1,IF(AND(YEAR(AugNed1+18)=KalendárnyRok,MONTH(AugNed1+18)=8),AugNed1+18,\"\"),IF(AND(YEAR(AugNed1+25)=KalendárnyRok,MONTH(AugNed1+25)=8),AugNed1+25,\"\"))","v":"2020-08-20"},{"$f":"IF(DAY(AugNed1)=1,IF(AND(YEAR(AugNed1+19)=KalendárnyRok,MONTH(AugNed1+19)=8),AugNed1+19,\"\"),IF(AND(YEAR(AugNed1+26)=KalendárnyRok,MONTH(AugNed1+26)=8),AugNed1+26,\"\"))","v":"2020-08-21"},{"$f":"IF(DAY(AugNed1)=1,IF(AND(YEAR(AugNed1+20)=KalendárnyRok,MONTH(AugNed1+20)=8),AugNed1+20,\"\"),IF(AND(YEAR(AugNed1+27)=KalendárnyRok,MONTH(AugNed1+27)=8),AugNed1+27,\"\"))","v":"2020-08-22"},{"$f":"IF(DAY(AugNed1)=1,IF(AND(YEAR(AugNed1+21)=KalendárnyRok,MONTH(AugNed1+21)=8),AugNed1+21,\"\"),IF(AND(YEAR(AugNed1+28)=KalendárnyRok,MONTH(AugNed1+28)=8),AugNed1+28,\"\"))","v":"2020-08-23"}]
[null,null,{"$f":"IF(DAY(JúlNed1)=1,IF(AND(YEAR(JúlNed1+22)=KalendárnyRok,MONTH(JúlNed1+22)=7),JúlNed1+22,\"\"),IF(AND(YEAR(JúlNed1+29)=KalendárnyRok,MONTH(JúlNed1+29)=7),JúlNed1+29,\"\"))","v":"2020-07-27"},{"$f":"IF(DAY(JúlNed1)=1,IF(AND(YEAR(JúlNed1+23)=KalendárnyRok,MONTH(JúlNed1+23)=7),JúlNed1+23,\"\"),IF(AND(YEAR(JúlNed1+30)=KalendárnyRok,MONTH(JúlNed1+30)=7),JúlNed1+30,\"\"))","v":"2020-07-28"},{"$f":"IF(DAY(JúlNed1)=1,IF(AND(YEAR(JúlNed1+24)=KalendárnyRok,MONTH(JúlNed1+24)=7),JúlNed1+24,\"\"),IF(AND(YEAR(JúlNed1+31)=KalendárnyRok,MONTH(JúlNed1+31)=7),JúlNed1+31,\"\"))","v":"2020-07-29"},{"$f":"IF(DAY(JúlNed1)=1,IF(AND(YEAR(JúlNed1+25)=KalendárnyRok,MONTH(JúlNed1+25)=7),JúlNed1+25,\"\"),IF(AND(YEAR(JúlNed1+32)=KalendárnyRok,MONTH(JúlNed1+32)=7),JúlNed1+32,\"\"))","v":"2020-07-30"},{"$f":"IF(DAY(JúlNed1)=1,IF(AND(YEAR(JúlNed1+26)=KalendárnyRok,MONTH(JúlNed1+26)=7),JúlNed1+26,\"\"),IF(AND(YEAR(JúlNed1+33)=KalendárnyRok,MONTH(JúlNed1+33)=7),JúlNed1+33,\"\"))","v":"2020-07-31"},{"$f":"IF(DAY(JúlNed1)=1,IF(AND(YEAR(JúlNed1+27)=KalendárnyRok,MONTH(JúlNed1+27)=7),JúlNed1+27,\"\"),IF(AND(YEAR(JúlNed1+34)=KalendárnyRok,MONTH(JúlNed1+34)=7),JúlNed1+34,\"\"))","v":""},{"$f":"IF(DAY(JúlNed1)=1,IF(AND(YEAR(JúlNed1+28)=KalendárnyRok,MONTH(JúlNed1+28)=7),JúlNed1+28,\"\"),IF(AND(YEAR(JúlNed1+35)=KalendárnyRok,MONTH(JúlNed1+35)=7),JúlNed1+35,\"\"))","v":""},null,{"$f":"IF(DAY(AugNed1)=1,IF(AND(YEAR(AugNed1+22)=KalendárnyRok,MONTH(AugNed1+22)=8),AugNed1+22,\"\"),IF(AND(YEAR(AugNed1+29)=KalendárnyRok,MONTH(AugNed1+29)=8),AugNed1+29,\"\"))","v":"2020-08-24"},{"$f":"IF(DAY(AugNed1)=1,IF(AND(YEAR(AugNed1+23)=KalendárnyRok,MONTH(AugNed1+23)=8),AugNed1+23,\"\"),IF(AND(YEAR(AugNed1+30)=KalendárnyRok,MONTH(AugNed1+30)=8),AugNed1+30,\"\"))","v":"2020-08-25"},{"$f":"IF(DAY(AugNed1)=1,IF(AND(YEAR(AugNed1+24)=KalendárnyRok,MONTH(AugNed1+24)=8),AugNed1+24,\"\"),IF(AND(YEAR(AugNed1+31)=KalendárnyRok,MONTH(AugNed1+31)=8),AugNed1+31,\"\"))","v":"2020-08-26"},{"$f":"IF(DAY(AugNed1)=1,IF(AND(YEAR(AugNed1+25)=KalendárnyRok,MONTH(AugNed1+25)=8),AugNed1+25,\"\"),IF(AND(YEAR(AugNed1+32)=KalendárnyRok,MONTH(AugNed1+32)=8),AugNed1+32,\"\"))","v":"2020-08-27"},{"$f":"IF(DAY(AugNed1)=1,IF(AND(YEAR(AugNed1+26)=KalendárnyRok,MONTH(AugNed1+26)=8),AugNed1+26,\"\"),IF(AND(YEAR(AugNed1+33)=KalendárnyRok,MONTH(AugNed1+33)=8),AugNed1+33,\"\"))","v":"2020-08-28"},{"$f":"IF(DAY(AugNed1)=1,IF(AND(YEAR(AugNed1+27)=KalendárnyRok,MONTH(AugNed1+27)=8),AugNed1+27,\"\"),IF(AND(YEAR(AugNed1+34)=KalendárnyRok,MONTH(AugNed1+34)=8),AugNed1+34,\"\"))","v":"2020-08-29"},{"$f":"IF(DAY(AugNed1)=1,IF(AND(YEAR(AugNed1+28)=KalendárnyRok,MONTH(AugNed1+28)=8),AugNed1+28,\"\"),IF(AND(YEAR(AugNed1+35)=KalendárnyRok,MONTH(AugNed1+35)=8),AugNed1+35,\"\"))","v":"2020-08-30"}]
[null,null,{"$f":"IF(DAY(JúlNed1)=1,IF(AND(YEAR(JúlNed1+29)=KalendárnyRok,MONTH(JúlNed1+29)=7),JúlNed1+29,\"\"),IF(AND(YEAR(JúlNed1+36)=KalendárnyRok,MONTH(JúlNed1+36)=7),JúlNed1+36,\"\"))","v":""},{"$f":"IF(DAY(JúlNed1)=1,IF(AND(YEAR(JúlNed1+30)=KalendárnyRok,MONTH(JúlNed1+30)=7),JúlNed1+30,\"\"),IF(AND(YEAR(JúlNed1+37)=KalendárnyRok,MONTH(JúlNed1+37)=7),JúlNed1+37,\"\"))","v":""},{"$f":"IF(DAY(JúlNed1)=1,IF(AND(YEAR(JúlNed1+31)=KalendárnyRok,MONTH(JúlNed1+31)=7),JúlNed1+31,\"\"),IF(AND(YEAR(JúlNed1+38)=KalendárnyRok,MONTH(JúlNed1+38)=7),JúlNed1+38,\"\"))","v":""},{"$f":"IF(DAY(JúlNed1)=1,IF(AND(YEAR(JúlNed1+32)=KalendárnyRok,MONTH(JúlNed1+32)=7),JúlNed1+32,\"\"),IF(AND(YEAR(JúlNed1+39)=KalendárnyRok,MONTH(JúlNed1+39)=7),JúlNed1+39,\"\"))","v":""},{"$f":"IF(DAY(JúlNed1)=1,IF(AND(YEAR(JúlNed1+33)=KalendárnyRok,MONTH(JúlNed1+33)=7),JúlNed1+33,\"\"),IF(AND(YEAR(JúlNed1+40)=KalendárnyRok,MONTH(JúlNed1+40)=7),JúlNed1+40,\"\"))","v":""},{"$f":"IF(DAY(JúlNed1)=1,IF(AND(YEAR(JúlNed1+34)=KalendárnyRok,MONTH(JúlNed1+34)=7),JúlNed1+34,\"\"),IF(AND(YEAR(JúlNed1+41)=KalendárnyRok,MONTH(JúlNed1+41)=7),JúlNed1+41,\"\"))","v":""},{"$f":"IF(DAY(JúlNed1)=1,IF(AND(YEAR(JúlNed1+35)=KalendárnyRok,MONTH(JúlNed1+35)=7),JúlNed1+35,\"\"),IF(AND(YEAR(JúlNed1+42)=KalendárnyRok,MONTH(JúlNed1+42)=7),JúlNed1+42,\"\"))","v":""},null,{"$f":"IF(DAY(AugNed1)=1,IF(AND(YEAR(AugNed1+29)=KalendárnyRok,MONTH(AugNed1+29)=8),AugNed1+29,\"\"),IF(AND(YEAR(AugNed1+36)=KalendárnyRok,MONTH(AugNed1+36)=8),AugNed1+36,\"\"))","v":"2020-08-31"},{"$f":"IF(DAY(AugNed1)=1,IF(AND(YEAR(AugNed1+30)=KalendárnyRok,MONTH(AugNed1+30)=8),AugNed1+30,\"\"),IF(AND(YEAR(AugNed1+37)=KalendárnyRok,MONTH(AugNed1+37)=8),AugNed1+37,\"\"))","v":""},{"$f":"IF(DAY(AugNed1)=1,IF(AND(YEAR(AugNed1+31)=KalendárnyRok,MONTH(AugNed1+31)=8),AugNed1+31,\"\"),IF(AND(YEAR(AugNed1+38)=KalendárnyRok,MONTH(AugNed1+38)=8),AugNed1+38,\"\"))","v":""},{"$f":"IF(DAY(AugNed1)=1,IF(AND(YEAR(AugNed1+32)=KalendárnyRok,MONTH(AugNed1+32)=8),AugNed1+32,\"\"),IF(AND(YEAR(AugNed1+39)=KalendárnyRok,MONTH(AugNed1+39)=8),AugNed1+39,\"\"))","v":""},{"$f":"IF(DAY(AugNed1)=1,IF(AND(YEAR(AugNed1+33)=KalendárnyRok,MONTH(AugNed1+33)=8),AugNed1+33,\"\"),IF(AND(YEAR(AugNed1+40)=KalendárnyRok,MONTH(AugNed1+40)=8),AugNed1+40,\"\"))","v":""},{"$f":"IF(DAY(AugNed1)=1,IF(AND(YEAR(AugNed1+34)=KalendárnyRok,MONTH(AugNed1+34)=8),AugNed1+34,\"\"),IF(AND(YEAR(AugNed1+41)=KalendárnyRok,MONTH(AugNed1+41)=8),AugNed1+41,\"\"))","v":""},{"$f":"IF(DAY(AugNed1)=1,IF(AND(YEAR(AugNed1+35)=KalendárnyRok,MONTH(AugNed1+35)=8),AugNed1+35,\"\"),IF(AND(YEAR(AugNed1+42)=KalendárnyRok,MONTH(AugNed1+42)=8),AugNed1+42,\"\"))","v":""}]
[]
["V bunke C39 je označenie September a v bunke K39 je označenie Október.",null,"SEPTEMBER",{"$nulls":7},"OKTÓBER"]
["V bunkách C40 až I46 je tabuľka kalendára na september a v bunkách K40 až Q46 je tabuľka kalendára na október. V bunke A44 je ďalší pokyn.",null,"PO","UT","ST","ŠT","PI","SO","NE",null,"PO","UT","ST","ŠT","PI","SO","NE"]
[null,null,{"$f":"IF(DAY(SepNed1)=1,\"\",IF(AND(YEAR(SepNed1+1)=KalendárnyRok,MONTH(SepNed1+1)=9),SepNed1+1,\"\"))","v":""},{"$f":"IF(DAY(SepNed1)=1,\"\",IF(AND(YEAR(SepNed1+2)=KalendárnyRok,MONTH(SepNed1+2)=9),SepNed1+2,\"\"))","v":"2020-09-01"},{"$f":"IF(DAY(SepNed1)=1,\"\",IF(AND(YEAR(SepNed1+3)=KalendárnyRok,MONTH(SepNed1+3)=9),SepNed1+3,\"\"))","v":"2020-09-02"},{"$f":"IF(DAY(SepNed1)=1,\"\",IF(AND(YEAR(SepNed1+4)=KalendárnyRok,MONTH(SepNed1+4)=9),SepNed1+4,\"\"))","v":"2020-09-03"},{"$f":"IF(DAY(SepNed1)=1,\"\",IF(AND(YEAR(SepNed1+5)=KalendárnyRok,MONTH(SepNed1+5)=9),SepNed1+5,\"\"))","v":"2020-09-04"},{"$f":"IF(DAY(SepNed1)=1,\"\",IF(AND(YEAR(SepNed1+6)=KalendárnyRok,MONTH(SepNed1+6)=9),SepNed1+6,\"\"))","v":"2020-09-05"},{"$f":"IF(DAY(SepNed1)=1,IF(AND(YEAR(SepNed1)=KalendárnyRok,MONTH(SepNed1)=9),SepNed1,\"\"),IF(AND(YEAR(SepNed1+7)=KalendárnyRok,MONTH(SepNed1+7)=9),SepNed1+7,\"\"))","v":"2020-09-06"},null,{"$f":"IF(DAY(OktNed1)=1,\"\",IF(AND(YEAR(OktNed1+1)=KalendárnyRok,MONTH(OktNed1+1)=10),OktNed1+1,\"\"))","v":""},{"$f":"IF(DAY(OktNed1)=1,\"\",IF(AND(YEAR(OktNed1+2)=KalendárnyRok,MONTH(OktNed1+2)=10),OktNed1+2,\"\"))","v":""},{"$f":"IF(DAY(OktNed1)=1,\"\",IF(AND(YEAR(OktNed1+3)=KalendárnyRok,MONTH(OktNed1+3)=10),OktNed1+3,\"\"))","v":""},{"$f":"IF(DAY(OktNed1)=1,\"\",IF(AND(YEAR(OktNed1+4)=KalendárnyRok,MONTH(OktNed1+4)=10),OktNed1+4,\"\"))","v":"2020-10-01"},{"$f":"IF(DAY(OktNed1)=1,\"\",IF(AND(YEAR(OktNed1+5)=KalendárnyRok,MONTH(OktNed1+5)=10),OktNed1+5,\"\"))","v":"2020-10-02"},{"$f":"IF(DAY(OktNed1)=1,\"\",IF(AND(YEAR(OktNed1+6)=KalendárnyRok,MONTH(OktNed1+6)=10),OktNed1+6,\"\"))","v":"2020-10-03"},{"$f":"IF(DAY(OktNed1)=1,IF(AND(YEAR(OktNed1)=KalendárnyRok,MONTH(OktNed1)=10),OktNed1,\"\"),IF(AND(YEAR(OktNed1+7)=KalendárnyRok,MONTH(OktNed1+7)=10),OktNed1+7,\"\"))","v":"2020-10-04"}]
[null,null,{"$f":"IF(DAY(SepNed1)=1,IF(AND(YEAR(SepNed1+1)=KalendárnyRok,MONTH(SepNed1+1)=9),SepNed1+1,\"\"),IF(AND(YEAR(SepNed1+8)=KalendárnyRok,MONTH(SepNed1+8)=9),SepNed1+8,\"\"))","v":"2020-09-07"},{"$f":"IF(DAY(SepNed1)=1,IF(AND(YEAR(SepNed1+2)=KalendárnyRok,MONTH(SepNed1+2)=9),SepNed1+2,\"\"),IF(AND(YEAR(SepNed1+9)=KalendárnyRok,MONTH(SepNed1+9)=9),SepNed1+9,\"\"))","v":"2020-09-08"},{"$f":"IF(DAY(SepNed1)=1,IF(AND(YEAR(SepNed1+3)=KalendárnyRok,MONTH(SepNed1+3)=9),SepNed1+3,\"\"),IF(AND(YEAR(SepNed1+10)=KalendárnyRok,MONTH(SepNed1+10)=9),SepNed1+10,\"\"))","v":"2020-09-09"},{"$f":"IF(DAY(SepNed1)=1,IF(AND(YEAR(SepNed1+4)=KalendárnyRok,MONTH(SepNed1+4)=9),SepNed1+4,\"\"),IF(AND(YEAR(SepNed1+11)=KalendárnyRok,MONTH(SepNed1+11)=9),SepNed1+11,\"\"))","v":"2020-09-10"},{"$f":"IF(DAY(SepNed1)=1,IF(AND(YEAR(SepNed1+5)=KalendárnyRok,MONTH(SepNed1+5)=9),SepNed1+5,\"\"),IF(AND(YEAR(SepNed1+12)=KalendárnyRok,MONTH(SepNed1+12)=9),SepNed1+12,\"\"))","v":"2020-09-11"},{"$f":"IF(DAY(SepNed1)=1,IF(AND(YEAR(SepNed1+6)=KalendárnyRok,MONTH(SepNed1+6)=9),SepNed1+6,\"\"),IF(AND(YEAR(SepNed1+13)=KalendárnyRok,MONTH(SepNed1+13)=9),SepNed1+13,\"\"))","v":"2020-09-12"},{"$f":"IF(DAY(SepNed1)=1,IF(AND(YEAR(SepNed1+7)=KalendárnyRok,MONTH(SepNed1+7)=9),SepNed1+7,\"\"),IF(AND(YEAR(SepNed1+14)=KalendárnyRok,MONTH(SepNed1+14)=9),SepNed1+14,\"\"))","v":"2020-09-13"},null,{"$f":"IF(DAY(OktNed1)=1,IF(AND(YEAR(OktNed1+1)=KalendárnyRok,MONTH(OktNed1+1)=10),OktNed1+1,\"\"),IF(AND(YEAR(OktNed1+8)=KalendárnyRok,MONTH(OktNed1+8)=10),OktNed1+8,\"\"))","v":"2020-10-05"},{"$f":"IF(DAY(OktNed1)=1,IF(AND(YEAR(OktNed1+2)=KalendárnyRok,MONTH(OktNed1+2)=10),OktNed1+2,\"\"),IF(AND(YEAR(OktNed1+9)=KalendárnyRok,MONTH(OktNed1+9)=10),OktNed1+9,\"\"))","v":"2020-10-06"},{"$f":"IF(DAY(OktNed1)=1,IF(AND(YEAR(OktNed1+3)=KalendárnyRok,MONTH(OktNed1+3)=10),OktNed1+3,\"\"),IF(AND(YEAR(OktNed1+10)=KalendárnyRok,MONTH(OktNed1+10)=10),OktNed1+10,\"\"))","v":"2020-10-07"},{"$f":"IF(DAY(OktNed1)=1,IF(AND(YEAR(OktNed1+4)=KalendárnyRok,MONTH(OktNed1+4)=10),OktNed1+4,\"\"),IF(AND(YEAR(OktNed1+11)=KalendárnyRok,MONTH(OktNed1+11)=10),OktNed1+11,\"\"))","v":"2020-10-08"},{"$f":"IF(DAY(OktNed1)=1,IF(AND(YEAR(OktNed1+5)=KalendárnyRok,MONTH(OktNed1+5)=10),OktNed1+5,\"\"),IF(AND(YEAR(OktNed1+12)=KalendárnyRok,MONTH(OktNed1+12)=10),OktNed1+12,\"\"))","v":"2020-10-09"},{"$f":"IF(DAY(OktNed1)=1,IF(AND(YEAR(OktNed1+6)=KalendárnyRok,MONTH(OktNed1+6)=10),OktNed1+6,\"\"),IF(AND(YEAR(OktNed1+13)=KalendárnyRok,MONTH(OktNed1+13)=10),OktNed1+13,\"\"))","v":"2020-10-10"},{"$f":"IF(DAY(OktNed1)=1,IF(AND(YEAR(OktNed1+7)=KalendárnyRok,MONTH(OktNed1+7)=10),OktNed1+7,\"\"),IF(AND(YEAR(OktNed1+14)=KalendárnyRok,MONTH(OktNed1+14)=10),OktNed1+14,\"\"))","v":"2020-10-11"}]
[null,null,{"$f":"IF(DAY(SepNed1)=1,IF(AND(YEAR(SepNed1+8)=KalendárnyRok,MONTH(SepNed1+8)=9),SepNed1+8,\"\"),IF(AND(YEAR(SepNed1+15)=KalendárnyRok,MONTH(SepNed1+15)=9),SepNed1+15,\"\"))","v":"2020-09-14"},{"$f":"IF(DAY(SepNed1)=1,IF(AND(YEAR(SepNed1+9)=KalendárnyRok,MONTH(SepNed1+9)=9),SepNed1+9,\"\"),IF(AND(YEAR(SepNed1+16)=KalendárnyRok,MONTH(SepNed1+16)=9),SepNed1+16,\"\"))","v":"2020-09-15"},{"$f":"IF(DAY(SepNed1)=1,IF(AND(YEAR(SepNed1+10)=KalendárnyRok,MONTH(SepNed1+10)=9),SepNed1+10,\"\"),IF(AND(YEAR(SepNed1+17)=KalendárnyRok,MONTH(SepNed1+17)=9),SepNed1+17,\"\"))","v":"2020-09-16"},{"$f":"IF(DAY(SepNed1)=1,IF(AND(YEAR(SepNed1+11)=KalendárnyRok,MONTH(SepNed1+11)=9),SepNed1+11,\"\"),IF(AND(YEAR(SepNed1+18)=KalendárnyRok,MONTH(SepNed1+18)=9),SepNed1+18,\"\"))","v":"2020-09-17"},{"$f":"IF(DAY(SepNed1)=1,IF(AND(YEAR(SepNed1+12)=KalendárnyRok,MONTH(SepNed1+12)=9),SepNed1+12,\"\"),IF(AND(YEAR(SepNed1+19)=KalendárnyRok,MONTH(SepNed1+19)=9),SepNed1+19,\"\"))","v":"2020-09-18"},{"$f":"IF(DAY(SepNed1)=1,IF(AND(YEAR(SepNed1+13)=KalendárnyRok,MONTH(SepNed1+13)=9),SepNed1+13,\"\"),IF(AND(YEAR(SepNed1+20)=KalendárnyRok,MONTH(SepNed1+20)=9),SepNed1+20,\"\"))","v":"2020-09-19"},{"$f":"IF(DAY(SepNed1)=1,IF(AND(YEAR(SepNed1+14)=KalendárnyRok,MONTH(SepNed1+14)=9),SepNed1+14,\"\"),IF(AND(YEAR(SepNed1+21)=KalendárnyRok,MONTH(SepNed1+21)=9),SepNed1+21,\"\"))","v":"2020-09-20"},null,{"$f":"IF(DAY(OktNed1)=1,IF(AND(YEAR(OktNed1+8)=KalendárnyRok,MONTH(OktNed1+8)=10),OktNed1+8,\"\"),IF(AND(YEAR(OktNed1+15)=KalendárnyRok,MONTH(OktNed1+15)=10),OktNed1+15,\"\"))","v":"2020-10-12"},{"$f":"IF(DAY(OktNed1)=1,IF(AND(YEAR(OktNed1+9)=KalendárnyRok,MONTH(OktNed1+9)=10),OktNed1+9,\"\"),IF(AND(YEAR(OktNed1+16)=KalendárnyRok,MONTH(OktNed1+16)=10),OktNed1+16,\"\"))","v":"2020-10-13"},{"$f":"IF(DAY(OktNed1)=1,IF(AND(YEAR(OktNed1+10)=KalendárnyRok,MONTH(OktNed1+10)=10),OktNed1+10,\"\"),IF(AND(YEAR(OktNed1+17)=KalendárnyRok,MONTH(OktNed1+17)=10),OktNed1+17,\"\"))","v":"2020-10-14"},{"$f":"IF(DAY(OktNed1)=1,IF(AND(YEAR(OktNed1+11)=KalendárnyRok,MONTH(OktNed1+11)=10),OktNed1+11,\"\"),IF(AND(YEAR(OktNed1+18)=KalendárnyRok,MONTH(OktNed1+18)=10),OktNed1+18,\"\"))","v":"2020-10-15"},{"$f":"IF(DAY(OktNed1)=1,IF(AND(YEAR(OktNed1+12)=KalendárnyRok,MONTH(OktNed1+12)=10),OktNed1+12,\"\"),IF(AND(YEAR(OktNed1+19)=KalendárnyRok,MONTH(OktNed1+19)=10),OktNed1+19,\"\"))","v":"2020-10-16"},{"$f":"IF(DAY(OktNed1)=1,IF(AND(YEAR(OktNed1+13)=KalendárnyRok,MONTH(OktNed1+13)=10),OktNed1+13,\"\"),IF(AND(YEAR(OktNed1+20)=KalendárnyRok,MONTH(OktNed1+20)=10),OktNed1+20,\"\"))","v":"2020-10-17"},{"$f":"IF(DAY(OktNed1)=1,IF(AND(YEAR(OktNed1+14)=KalendárnyRok,MONTH(OktNed1+14)=10),OktNed1+14,\"\"),IF(AND(YEAR(OktNed1+21)=KalendárnyRok,MONTH(OktNed1+21)=10),OktNed1+21,\"\"))","v":"2020-10-18"}]
["Do bunky U44 zadajte ulicu.",null,{"$f":"IF(DAY(SepNed1)=1,IF(AND(YEAR(SepNed1+15)=KalendárnyRok,MONTH(SepNed1+15)=9),SepNed1+15,\"\"),IF(AND(YEAR(SepNed1+22)=KalendárnyRok,MONTH(SepNed1+22)=9),SepNed1+22,\"\"))","v":"2020-09-21"},{"$f":"IF(DAY(SepNed1)=1,IF(AND(YEAR(SepNed1+16)=KalendárnyRok,MONTH(SepNed1+16)=9),SepNed1+16,\"\"),IF(AND(YEAR(SepNed1+23)=KalendárnyRok,MONTH(SepNed1+23)=9),SepNed1+23,\"\"))","v":"2020-09-22"},{"$f":"IF(DAY(SepNed1)=1,IF(AND(YEAR(SepNed1+17)=KalendárnyRok,MONTH(SepNed1+17)=9),SepNed1+17,\"\"),IF(AND(YEAR(SepNed1+24)=KalendárnyRok,MONTH(SepNed1+24)=9),SepNed1+24,\"\"))","v":"2020-09-23"},{"$f":"IF(DAY(SepNed1)=1,IF(AND(YEAR(SepNed1+18)=KalendárnyRok,MONTH(SepNed1+18)=9),SepNed1+18,\"\"),IF(AND(YEAR(SepNed1+25)=KalendárnyRok,MONTH(SepNed1+25)=9),SepNed1+25,\"\"))","v":"2020-09-24"},{"$f":"IF(DAY(SepNed1)=1,IF(AND(YEAR(SepNed1+19)=KalendárnyRok,MONTH(SepNed1+19)=9),SepNed1+19,\"\"),IF(AND(YEAR(SepNed1+26)=KalendárnyRok,MONTH(SepNed1+26)=9),SepNed1+26,\"\"))","v":"2020-09-25"},{"$f":"IF(DAY(SepNed1)=1,IF(AND(YEAR(SepNed1+20)=KalendárnyRok,MONTH(SepNed1+20)=9),SepNed1+20,\"\"),IF(AND(YEAR(SepNed1+27)=KalendárnyRok,MONTH(SepNed1+27)=9),SepNed1+27,\"\"))","v":"2020-09-26"},{"$f":"IF(DAY(SepNed1)=1,IF(AND(YEAR(SepNed1+21)=KalendárnyRok,MONTH(SepNed1+21)=9),SepNed1+21,\"\"),IF(AND(YEAR(SepNed1+28)=KalendárnyRok,MONTH(SepNed1+28)=9),SepNed1+28,\"\"))","v":"2020-09-27"},null,{"$f":"IF(DAY(OktNed1)=1,IF(AND(YEAR(OktNed1+15)=KalendárnyRok,MONTH(OktNed1+15)=10),OktNed1+15,\"\"),IF(AND(YEAR(OktNed1+22)=KalendárnyRok,MONTH(OktNed1+22)=10),OktNed1+22,\"\"))","v":"2020-10-19"},{"$f":"IF(DAY(OktNed1)=1,IF(AND(YEAR(OktNed1+16)=KalendárnyRok,MONTH(OktNed1+16)=10),OktNed1+16,\"\"),IF(AND(YEAR(OktNed1+23)=KalendárnyRok,MONTH(OktNed1+23)=10),OktNed1+23,\"\"))","v":"2020-10-20"},{"$f":"IF(DAY(OktNed1)=1,IF(AND(YEAR(OktNed1+17)=KalendárnyRok,MONTH(OktNed1+17)=10),OktNed1+17,\"\"),IF(AND(YEAR(OktNed1+24)=KalendárnyRok,MONTH(OktNed1+24)=10),OktNed1+24,\"\"))","v":"2020-10-21"},{"$f":"IF(DAY(OktNed1)=1,IF(AND(YEAR(OktNed1+18)=KalendárnyRok,MONTH(OktNed1+18)=10),OktNed1+18,\"\"),IF(AND(YEAR(OktNed1+25)=KalendárnyRok,MONTH(OktNed1+25)=10),OktNed1+25,\"\"))","v":"2020-10-22"},{"$f":"IF(DAY(OktNed1)=1,IF(AND(YEAR(OktNed1+19)=KalendárnyRok,MONTH(OktNed1+19)=10),OktNed1+19,\"\"),IF(AND(YEAR(OktNed1+26)=KalendárnyRok,MONTH(OktNed1+26)=10),OktNed1+26,\"\"))","v":"2020-10-23"},{"$f":"IF(DAY(OktNed1)=1,IF(AND(YEAR(OktNed1+20)=KalendárnyRok,MONTH(OktNed1+20)=10),OktNed1+20,\"\"),IF(AND(YEAR(OktNed1+27)=KalendárnyRok,MONTH(OktNed1+27)=10),OktNed1+27,\"\"))","v":"2020-10-24"},{"$f":"IF(DAY(OktNed1)=1,IF(AND(YEAR(OktNed1+21)=KalendárnyRok,MONTH(OktNed1+21)=10),OktNed1+21,\"\"),IF(AND(YEAR(OktNed1+28)=KalendárnyRok,MONTH(OktNed1+28)=10),OktNed1+28,\"\"))","v":"2020-10-25"},{"$nulls":3},"Ulica"]
["Do bunky U45 zadajte PSČ a mesto. V bunke A47 je ďalší pokyn.",null,{"$f":"IF(DAY(SepNed1)=1,IF(AND(YEAR(SepNed1+22)=KalendárnyRok,MONTH(SepNed1+22)=9),SepNed1+22,\"\"),IF(AND(YEAR(SepNed1+29)=KalendárnyRok,MONTH(SepNed1+29)=9),SepNed1+29,\"\"))","v":"2020-09-28"},{"$f":"IF(DAY(SepNed1)=1,IF(AND(YEAR(SepNed1+23)=KalendárnyRok,MONTH(SepNed1+23)=9),SepNed1+23,\"\"),IF(AND(YEAR(SepNed1+30)=KalendárnyRok,MONTH(SepNed1+30)=9),SepNed1+30,\"\"))","v":"2020-09-29"},{"$f":"IF(DAY(SepNed1)=1,IF(AND(YEAR(SepNed1+24)=KalendárnyRok,MONTH(SepNed1+24)=9),SepNed1+24,\"\"),IF(AND(YEAR(SepNed1+31)=KalendárnyRok,MONTH(SepNed1+31)=9),SepNed1+31,\"\"))","v":"2020-09-30"},{"$f":"IF(DAY(SepNed1)=1,IF(AND(YEAR(SepNed1+25)=KalendárnyRok,MONTH(SepNed1+25)=9),SepNed1+25,\"\"),IF(AND(YEAR(SepNed1+32)=KalendárnyRok,MONTH(SepNed1+32)=9),SepNed1+32,\"\"))","v":""},{"$f":"IF(DAY(SepNed1)=1,IF(AND(YEAR(SepNed1+26)=KalendárnyRok,MONTH(SepNed1+26)=9),SepNed1+26,\"\"),IF(AND(YEAR(SepNed1+33)=KalendárnyRok,MONTH(SepNed1+33)=9),SepNed1+33,\"\"))","v":""},{"$f":"IF(DAY(SepNed1)=1,IF(AND(YEAR(SepNed1+27)=KalendárnyRok,MONTH(SepNed1+27)=9),SepNed1+27,\"\"),IF(AND(YEAR(SepNed1+34)=KalendárnyRok,MONTH(SepNed1+34)=9),SepNed1+34,\"\"))","v":""},{"$f":"IF(DAY(SepNed1)=1,IF(AND(YEAR(SepNed1+28)=KalendárnyRok,MONTH(SepNed1+28)=9),SepNed1+28,\"\"),IF(AND(YEAR(SepNed1+35)=KalendárnyRok,MONTH(SepNed1+35)=9),SepNed1+35,\"\"))","v":""},null,{"$f":"IF(DAY(OktNed1)=1,IF(AND(YEAR(OktNed1+22)=KalendárnyRok,MONTH(OktNed1+22)=10),OktNed1+22,\"\"),IF(AND(YEAR(OktNed1+29)=KalendárnyRok,MONTH(OktNed1+29)=10),OktNed1+29,\"\"))","v":"2020-10-26"},{"$f":"IF(DAY(OktNed1)=1,IF(AND(YEAR(OktNed1+23)=KalendárnyRok,MONTH(OktNed1+23)=10),OktNed1+23,\"\"),IF(AND(YEAR(OktNed1+30)=KalendárnyRok,MONTH(OktNed1+30)=10),OktNed1+30,\"\"))","v":"2020-10-27"},{"$f":"IF(DAY(OktNed1)=1,IF(AND(YEAR(OktNed1+24)=KalendárnyRok,MONTH(OktNed1+24)=10),OktNed1+24,\"\"),IF(AND(YEAR(OktNed1+31)=KalendárnyRok,MONTH(OktNed1+31)=10),OktNed1+31,\"\"))","v":"2020-10-28"},{"$f":"IF(DAY(OktNed1)=1,IF(AND(YEAR(OktNed1+25)=KalendárnyRok,MONTH(OktNed1+25)=10),OktNed1+25,\"\"),IF(AND(YEAR(OktNed1+32)=KalendárnyRok,MONTH(OktNed1+32)=10),OktNed1+32,\"\"))","v":"2020-10-29"},{"$f":"IF(DAY(OktNed1)=1,IF(AND(YEAR(OktNed1+26)=KalendárnyRok,MONTH(OktNed1+26)=10),OktNed1+26,\"\"),IF(AND(YEAR(OktNed1+33)=KalendárnyRok,MONTH(OktNed1+33)=10),OktNed1+33,\"\"))","v":"2020-10-30"},{"$f":"IF(DAY(OktNed1)=1,IF(AND(YEAR(OktNed1+27)=KalendárnyRok,MONTH(OktNed1+27)=10),OktNed1+27,\"\"),IF(AND(YEAR(OktNed1+34)=KalendárnyRok,MONTH(OktNed1+34)=10),OktNed1+34,\"\"))","v":"2020-10-31"},{"$f":"IF(DAY(OktNed1)=1,IF(AND(YEAR(OktNed1+28)=KalendárnyRok,MONTH(OktNed1+28)=10),OktNed1+28,\"\"),IF(AND(YEAR(OktNed1+35)=KalendárnyRok,MONTH(OktNed1+35)=10),OktNed1+35,\"\"))","v":""},{"$nulls":3},"PSČ, mesto"]
[null,null,{"$f":"IF(DAY(SepNed1)=1,IF(AND(YEAR(SepNed1+29)=KalendárnyRok,MONTH(SepNed1+29)=9),SepNed1+29,\"\"),IF(AND(YEAR(SepNed1+36)=KalendárnyRok,MONTH(SepNed1+36)=9),SepNed1+36,\"\"))","v":""},{"$f":"IF(DAY(SepNed1)=1,IF(AND(YEAR(SepNed1+30)=KalendárnyRok,MONTH(SepNed1+30)=9),SepNed1+30,\"\"),IF(AND(YEAR(SepNed1+37)=KalendárnyRok,MONTH(SepNed1+37)=9),SepNed1+37,\"\"))","v":""},{"$f":"IF(DAY(SepNed1)=1,IF(AND(YEAR(SepNed1+31)=KalendárnyRok,MONTH(SepNed1+31)=9),SepNed1+31,\"\"),IF(AND(YEAR(SepNed1+38)=KalendárnyRok,MONTH(SepNed1+38)=9),SepNed1+38,\"\"))","v":""},{"$f":"IF(DAY(SepNed1)=1,IF(AND(YEAR(SepNed1+32)=KalendárnyRok,MONTH(SepNed1+32)=9),SepNed1+32,\"\"),IF(AND(YEAR(SepNed1+39)=KalendárnyRok,MONTH(SepNed1+39)=9),SepNed1+39,\"\"))","v":""},{"$f":"IF(DAY(SepNed1)=1,IF(AND(YEAR(SepNed1+33)=KalendárnyRok,MONTH(SepNed1+33)=9),SepNed1+33,\"\"),IF(AND(YEAR(SepNed1+40)=KalendárnyRok,MONTH(SepNed1+40)=9),SepNed1+40,\"\"))","v":""},{"$f":"IF(DAY(SepNed1)=1,IF(AND(YEAR(SepNed1+34)=KalendárnyRok,MONTH(SepNed1+34)=9),SepNed1+34,\"\"),IF(AND(YEAR(SepNed1+41)=KalendárnyRok,MONTH(SepNed1+41)=9),SepNed1+41,\"\"))","v":""},{"$f":"IF(DAY(SepNed1)=1,IF(AND(YEAR(SepNed1+35)=KalendárnyRok,MONTH(SepNed1+35)=9),SepNed1+35,\"\"),IF(AND(YEAR(SepNed1+42)=KalendárnyRok,MONTH(SepNed1+42)=9),SepNed1+42,\"\"))","v":""},null,{"$f":"IF(DAY(OktNed1)=1,IF(AND(YEAR(OktNed1+29)=KalendárnyRok,MONTH(OktNed1+29)=10),OktNed1+29,\"\"),IF(AND(YEAR(OktNed1+36)=KalendárnyRok,MONTH(OktNed1+36)=10),OktNed1+36,\"\"))","v":""},{"$f":"IF(DAY(OktNed1)=1,IF(AND(YEAR(OktNed1+30)=KalendárnyRok,MONTH(OktNed1+30)=10),OktNed1+30,\"\"),IF(AND(YEAR(OktNed1+37)=KalendárnyRok,MONTH(OktNed1+37)=10),OktNed1+37,\"\"))","v":""},{"$f":"IF(DAY(OktNed1)=1,IF(AND(YEAR(OktNed1+31)=KalendárnyRok,MONTH(OktNed1+31)=10),OktNed1+31,\"\"),IF(AND(YEAR(OktNed1+38)=KalendárnyRok,MONTH(OktNed1+38)=10),OktNed1+38,\"\"))","v":""},{"$f":"IF(DAY(OktNed1)=1,IF(AND(YEAR(OktNed1+32)=KalendárnyRok,MONTH(OktNed1+32)=10),OktNed1+32,\"\"),IF(AND(YEAR(OktNed1+39)=KalendárnyRok,MONTH(OktNed1+39)=10),OktNed1+39,\"\"))","v":""},{"$f":"IF(DAY(OktNed1)=1,IF(AND(YEAR(OktNed1+33)=KalendárnyRok,MONTH(OktNed1+33)=10),OktNed1+33,\"\"),IF(AND(YEAR(OktNed1+40)=KalendárnyRok,MONTH(OktNed1+40)=10),OktNed1+40,\"\"))","v":""},{"$f":"IF(DAY(OktNed1)=1,IF(AND(YEAR(OktNed1+34)=KalendárnyRok,MONTH(OktNed1+34)=10),OktNed1+34,\"\"),IF(AND(YEAR(OktNed1+41)=KalendárnyRok,MONTH(OktNed1+41)=10),OktNed1+41,\"\"))","v":""},{"$f":"IF(DAY(OktNed1)=1,IF(AND(YEAR(OktNed1+35)=KalendárnyRok,MONTH(OktNed1+35)=10),OktNed1+35,\"\"),IF(AND(YEAR(OktNed1+42)=KalendárnyRok,MONTH(OktNed1+42)=10),OktNed1+42,\"\"))","v":""}]
["Do bunky U47 zadajte telefónne číslo spoločnosti.",{"$nulls":19},"Telefón"]
["V bunke C48 je označenie November a v bunke K48 je označenie December. Do bunky U48 zadajte e-mailovú adresu",null,"NOVEMBER",{"$nulls":7},"DECEMBER",{"$nulls":9},"E-mail"]
["V bunkách C49 až I55 je tabuľka kalendára na november a v bunkách K49 až Q55 je tabuľka kalendára na december. V bunke A51 je ďalší pokyn.",null,"PO","UT","ST","ŠT","PI","SO","NE",null,"PO","UT","ST","ŠT","PI","SO","NE",{"$nulls":3},"Webová lokalita"]
[null,null,{"$f":"IF(DAY(NovNed1)=1,\"\",IF(AND(YEAR(NovNed1+1)=KalendárnyRok,MONTH(NovNed1+1)=11),NovNed1+1,\"\"))","v":""},{"$f":"IF(DAY(NovNed1)=1,\"\",IF(AND(YEAR(NovNed1+2)=KalendárnyRok,MONTH(NovNed1+2)=11),NovNed1+2,\"\"))","v":""},{"$f":"IF(DAY(NovNed1)=1,\"\",IF(AND(YEAR(NovNed1+3)=KalendárnyRok,MONTH(NovNed1+3)=11),NovNed1+3,\"\"))","v":""},{"$f":"IF(DAY(NovNed1)=1,\"\",IF(AND(YEAR(NovNed1+4)=KalendárnyRok,MONTH(NovNed1+4)=11),NovNed1+4,\"\"))","v":""},{"$f":"IF(DAY(NovNed1)=1,\"\",IF(AND(YEAR(NovNed1+5)=KalendárnyRok,MONTH(NovNed1+5)=11),NovNed1+5,\"\"))","v":""},{"$f":"IF(DAY(NovNed1)=1,\"\",IF(AND(YEAR(NovNed1+6)=KalendárnyRok,MONTH(NovNed1+6)=11),NovNed1+6,\"\"))","v":""},{"$f":"IF(DAY(NovNed1)=1,IF(AND(YEAR(NovNed1)=KalendárnyRok,MONTH(NovNed1)=11),NovNed1,\"\"),IF(AND(YEAR(NovNed1+7)=KalendárnyRok,MONTH(NovNed1+7)=11),NovNed1+7,\"\"))","v":"2020-11-01"},null,{"$f":"IF(DAY(DecNed1)=1,\"\",IF(AND(YEAR(DecNed1+1)=KalendárnyRok,MONTH(DecNed1+1)=12),DecNed1+1,\"\"))","v":""},{"$f":"IF(DAY(DecNed1)=1,\"\",IF(AND(YEAR(DecNed1+2)=KalendárnyRok,MONTH(DecNed1+2)=12),DecNed1+2,\"\"))","v":"2020-12-01"},{"$f":"IF(DAY(DecNed1)=1,\"\",IF(AND(YEAR(DecNed1+3)=KalendárnyRok,MONTH(DecNed1+3)=12),DecNed1+3,\"\"))","v":"2020-12-02"},{"$f":"IF(DAY(DecNed1)=1,\"\",IF(AND(YEAR(DecNed1+4)=KalendárnyRok,MONTH(DecNed1+4)=12),DecNed1+4,\"\"))","v":"2020-12-03"},{"$f":"IF(DAY(DecNed1)=1,\"\",IF(AND(YEAR(DecNed1+5)=KalendárnyRok,MONTH(DecNed1+5)=12),DecNed1+5,\"\"))","v":"2020-12-04"},{"$f":"IF(DAY(DecNed1)=1,\"\",IF(AND(YEAR(DecNed1+6)=KalendárnyRok,MONTH(DecNed1+6)=12),DecNed1+6,\"\"))","v":"2020-12-05"},{"$f":"IF(DAY(DecNed1)=1,IF(AND(YEAR(DecNed1)=KalendárnyRok,MONTH(DecNed1)=12),DecNed1,\"\"),IF(AND(YEAR(DecNed1+7)=KalendárnyRok,MONTH(DecNed1+7)=12),DecNed1+7,\"\"))","v":"2020-12-06"}]
["Do bunky U51 pridajte logo spoločnosti.",null,{"$f":"IF(DAY(NovNed1)=1,IF(AND(YEAR(NovNed1+1)=KalendárnyRok,MONTH(NovNed1+1)=11),NovNed1+1,\"\"),IF(AND(YEAR(NovNed1+8)=KalendárnyRok,MONTH(NovNed1+8)=11),NovNed1+8,\"\"))","v":"2020-11-02"},{"$f":"IF(DAY(NovNed1)=1,IF(AND(YEAR(NovNed1+2)=KalendárnyRok,MONTH(NovNed1+2)=11),NovNed1+2,\"\"),IF(AND(YEAR(NovNed1+9)=KalendárnyRok,MONTH(NovNed1+9)=11),NovNed1+9,\"\"))","v":"2020-11-03"},{"$f":"IF(DAY(NovNed1)=1,IF(AND(YEAR(NovNed1+3)=KalendárnyRok,MONTH(NovNed1+3)=11),NovNed1+3,\"\"),IF(AND(YEAR(NovNed1+10)=KalendárnyRok,MONTH(NovNed1+10)=11),NovNed1+10,\"\"))","v":"2020-11-04"},{"$f":"IF(DAY(NovNed1)=1,IF(AND(YEAR(NovNed1+4)=KalendárnyRok,MONTH(NovNed1+4)=11),NovNed1+4,\"\"),IF(AND(YEAR(NovNed1+11)=KalendárnyRok,MONTH(NovNed1+11)=11),NovNed1+11,\"\"))","v":"2020-11-05"},{"$f":"IF(DAY(NovNed1)=1,IF(AND(YEAR(NovNed1+5)=KalendárnyRok,MONTH(NovNed1+5)=11),NovNed1+5,\"\"),IF(AND(YEAR(NovNed1+12)=KalendárnyRok,MONTH(NovNed1+12)=11),NovNed1+12,\"\"))","v":"2020-11-06"},{"$f":"IF(DAY(NovNed1)=1,IF(AND(YEAR(NovNed1+6)=KalendárnyRok,MONTH(NovNed1+6)=11),NovNed1+6,\"\"),IF(AND(YEAR(NovNed1+13)=KalendárnyRok,MONTH(NovNed1+13)=11),NovNed1+13,\"\"))","v":"2020-11-07"},{"$f":"IF(DAY(NovNed1)=1,IF(AND(YEAR(NovNed1+7)=KalendárnyRok,MONTH(NovNed1+7)=11),NovNed1+7,\"\"),IF(AND(YEAR(NovNed1+14)=KalendárnyRok,MONTH(NovNed1+14)=11),NovNed1+14,\"\"))","v":"2020-11-08"},null,{"$f":"IF(DAY(DecNed1)=1,IF(AND(YEAR(DecNed1+1)=KalendárnyRok,MONTH(DecNed1+1)=12),DecNed1+1,\"\"),IF(AND(YEAR(DecNed1+8)=KalendárnyRok,MONTH(DecNed1+8)=12),DecNed1+8,\"\"))","v":"2020-12-07"},{"$f":"IF(DAY(DecNed1)=1,IF(AND(YEAR(DecNed1+2)=KalendárnyRok,MONTH(DecNed1+2)=12),DecNed1+2,\"\"),IF(AND(YEAR(DecNed1+9)=KalendárnyRok,MONTH(DecNed1+9)=12),DecNed1+9,\"\"))","v":"2020-12-08"},{"$f":"IF(DAY(DecNed1)=1,IF(AND(YEAR(DecNed1+3)=KalendárnyRok,MONTH(DecNed1+3)=12),DecNed1+3,\"\"),IF(AND(YEAR(DecNed1+10)=KalendárnyRok,MONTH(DecNed1+10)=12),DecNed1+10,\"\"))","v":"2020-12-09"},{"$f":"IF(DAY(DecNed1)=1,IF(AND(YEAR(DecNed1+4)=KalendárnyRok,MONTH(DecNed1+4)=12),DecNed1+4,\"\"),IF(AND(YEAR(DecNed1+11)=KalendárnyRok,MONTH(DecNed1+11)=12),DecNed1+11,\"\"))","v":"2020-12-10"},{"$f":"IF(DAY(DecNed1)=1,IF(AND(YEAR(DecNed1+5)=KalendárnyRok,MONTH(DecNed1+5)=12),DecNed1+5,\"\"),IF(AND(YEAR(DecNed1+12)=KalendárnyRok,MONTH(DecNed1+12)=12),DecNed1+12,\"\"))","v":"2020-12-11"},{"$f":"IF(DAY(DecNed1)=1,IF(AND(YEAR(DecNed1+6)=KalendárnyRok,MONTH(DecNed1+6)=12),DecNed1+6,\"\"),IF(AND(YEAR(DecNed1+13)=KalendárnyRok,MONTH(DecNed1+13)=12),DecNed1+13,\"\"))","v":"2020-12-12"},{"$f":"IF(DAY(DecNed1)=1,IF(AND(YEAR(DecNed1+7)=KalendárnyRok,MONTH(DecNed1+7)=12),DecNed1+7,\"\"),IF(AND(YEAR(DecNed1+14)=KalendárnyRok,MONTH(DecNed1+14)=12),DecNed1+14,\"\"))","v":"2020-12-13"},{"$nulls":3},"V tejto bunke je zástupné logo."]
[null,null,{"$f":"IF(DAY(NovNed1)=1,IF(AND(YEAR(NovNed1+8)=KalendárnyRok,MONTH(NovNed1+8)=11),NovNed1+8,\"\"),IF(AND(YEAR(NovNed1+15)=KalendárnyRok,MONTH(NovNed1+15)=11),NovNed1+15,\"\"))","v":"2020-11-09"},{"$f":"IF(DAY(NovNed1)=1,IF(AND(YEAR(NovNed1+9)=KalendárnyRok,MONTH(NovNed1+9)=11),NovNed1+9,\"\"),IF(AND(YEAR(NovNed1+16)=KalendárnyRok,MONTH(NovNed1+16)=11),NovNed1+16,\"\"))","v":"2020-11-10"},{"$f":"IF(DAY(NovNed1)=1,IF(AND(YEAR(NovNed1+10)=KalendárnyRok,MONTH(NovNed1+10)=11),NovNed1+10,\"\"),IF(AND(YEAR(NovNed1+17)=KalendárnyRok,MONTH(NovNed1+17)=11),NovNed1+17,\"\"))","v":"2020-11-11"},{"$f":"IF(DAY(NovNed1)=1,IF(AND(YEAR(NovNed1+11)=KalendárnyRok,MONTH(NovNed1+11)=11),NovNed1+11,\"\"),IF(AND(YEAR(NovNed1+18)=KalendárnyRok,MONTH(NovNed1+18)=11),NovNed1+18,\"\"))","v":"2020-11-12"},{"$f":"IF(DAY(NovNed1)=1,IF(AND(YEAR(NovNed1+12)=KalendárnyRok,MONTH(NovNed1+12)=11),NovNed1+12,\"\"),IF(AND(YEAR(NovNed1+19)=KalendárnyRok,MONTH(NovNed1+19)=11),NovNed1+19,\"\"))","v":"2020-11-13"},{"$f":"IF(DAY(NovNed1)=1,IF(AND(YEAR(NovNed1+13)=KalendárnyRok,MONTH(NovNed1+13)=11),NovNed1+13,\"\"),IF(AND(YEAR(NovNed1+20)=KalendárnyRok,MONTH(NovNed1+20)=11),NovNed1+20,\"\"))","v":"2020-11-14"},{"$f":"IF(DAY(NovNed1)=1,IF(AND(YEAR(NovNed1+14)=KalendárnyRok,MONTH(NovNed1+14)=11),NovNed1+14,\"\"),IF(AND(YEAR(NovNed1+21)=KalendárnyRok,MONTH(NovNed1+21)=11),NovNed1+21,\"\"))","v":"2020-11-15"},null,{"$f":"IF(DAY(DecNed1)=1,IF(AND(YEAR(DecNed1+8)=KalendárnyRok,MONTH(DecNed1+8)=12),DecNed1+8,\"\"),IF(AND(YEAR(DecNed1+15)=KalendárnyRok,MONTH(DecNed1+15)=12),DecNed1+15,\"\"))","v":"2020-12-14"},{"$f":"IF(DAY(DecNed1)=1,IF(AND(YEAR(DecNed1+9)=KalendárnyRok,MONTH(DecNed1+9)=12),DecNed1+9,\"\"),IF(AND(YEAR(DecNed1+16)=KalendárnyRok,MONTH(DecNed1+16)=12),DecNed1+16,\"\"))","v":"2020-12-15"},{"$f":"IF(DAY(DecNed1)=1,IF(AND(YEAR(DecNed1+10)=KalendárnyRok,MONTH(DecNed1+10)=12),DecNed1+10,\"\"),IF(AND(YEAR(DecNed1+17)=KalendárnyRok,MONTH(DecNed1+17)=12),DecNed1+17,\"\"))","v":"2020-12-16"},{"$f":"IF(DAY(DecNed1)=1,IF(AND(YEAR(DecNed1+11)=KalendárnyRok,MONTH(DecNed1+11)=12),DecNed1+11,\"\"),IF(AND(YEAR(DecNed1+18)=KalendárnyRok,MONTH(DecNed1+18)=12),DecNed1+18,\"\"))","v":"2020-12-17"},{"$f":"IF(DAY(DecNed1)=1,IF(AND(YEAR(DecNed1+12)=KalendárnyRok,MONTH(DecNed1+12)=12),DecNed1+12,\"\"),IF(AND(YEAR(DecNed1+19)=KalendárnyRok,MONTH(DecNed1+19)=12),DecNed1+19,\"\"))","v":"2020-12-18"},{"$f":"IF(DAY(DecNed1)=1,IF(AND(YEAR(DecNed1+13)=KalendárnyRok,MONTH(DecNed1+13)=12),DecNed1+13,\"\"),IF(AND(YEAR(DecNed1+20)=KalendárnyRok,MONTH(DecNed1+20)=12),DecNed1+20,\"\"))","v":"2020-12-19"},{"$f":"IF(DAY(DecNed1)=1,IF(AND(YEAR(DecNed1+14)=KalendárnyRok,MONTH(DecNed1+14)=12),DecNed1+14,\"\"),IF(AND(YEAR(DecNed1+21)=KalendárnyRok,MONTH(DecNed1+21)=12),DecNed1+21,\"\"))","v":"2020-12-20"}]
[null,null,{"$f":"IF(DAY(NovNed1)=1,IF(AND(YEAR(NovNed1+15)=KalendárnyRok,MONTH(NovNed1+15)=11),NovNed1+15,\"\"),IF(AND(YEAR(NovNed1+22)=KalendárnyRok,MONTH(NovNed1+22)=11),NovNed1+22,\"\"))","v":"2020-11-16"},{"$f":"IF(DAY(NovNed1)=1,IF(AND(YEAR(NovNed1+16)=KalendárnyRok,MONTH(NovNed1+16)=11),NovNed1+16,\"\"),IF(AND(YEAR(NovNed1+23)=KalendárnyRok,MONTH(NovNed1+23)=11),NovNed1+23,\"\"))","v":"2020-11-17"},{"$f":"IF(DAY(NovNed1)=1,IF(AND(YEAR(NovNed1+17)=KalendárnyRok,MONTH(NovNed1+17)=11),NovNed1+17,\"\"),IF(AND(YEAR(NovNed1+24)=KalendárnyRok,MONTH(NovNed1+24)=11),NovNed1+24,\"\"))","v":"2020-11-18"},{"$f":"IF(DAY(NovNed1)=1,IF(AND(YEAR(NovNed1+18)=KalendárnyRok,MONTH(NovNed1+18)=11),NovNed1+18,\"\"),IF(AND(YEAR(NovNed1+25)=KalendárnyRok,MONTH(NovNed1+25)=11),NovNed1+25,\"\"))","v":"2020-11-19"},{"$f":"IF(DAY(NovNed1)=1,IF(AND(YEAR(NovNed1+19)=KalendárnyRok,MONTH(NovNed1+19)=11),NovNed1+19,\"\"),IF(AND(YEAR(NovNed1+26)=KalendárnyRok,MONTH(NovNed1+26)=11),NovNed1+26,\"\"))","v":"2020-11-20"},{"$f":"IF(DAY(NovNed1)=1,IF(AND(YEAR(NovNed1+20)=KalendárnyRok,MONTH(NovNed1+20)=11),NovNed1+20,\"\"),IF(AND(YEAR(NovNed1+27)=KalendárnyRok,MONTH(NovNed1+27)=11),NovNed1+27,\"\"))","v":"2020-11-21"},{"$f":"IF(DAY(NovNed1)=1,IF(AND(YEAR(NovNed1+21)=KalendárnyRok,MONTH(NovNed1+21)=11),NovNed1+21,\"\"),IF(AND(YEAR(NovNed1+28)=KalendárnyRok,MONTH(NovNed1+28)=11),NovNed1+28,\"\"))","v":"2020-11-22"},null,{"$f":"IF(DAY(DecNed1)=1,IF(AND(YEAR(DecNed1+15)=KalendárnyRok,MONTH(DecNed1+15)=12),DecNed1+15,\"\"),IF(AND(YEAR(DecNed1+22)=KalendárnyRok,MONTH(DecNed1+22)=12),DecNed1+22,\"\"))","v":"2020-12-21"},{"$f":"IF(DAY(DecNed1)=1,IF(AND(YEAR(DecNed1+16)=KalendárnyRok,MONTH(DecNed1+16)=12),DecNed1+16,\"\"),IF(AND(YEAR(DecNed1+23)=KalendárnyRok,MONTH(DecNed1+23)=12),DecNed1+23,\"\"))","v":"2020-12-22"},{"$f":"IF(DAY(DecNed1)=1,IF(AND(YEAR(DecNed1+17)=KalendárnyRok,MONTH(DecNed1+17)=12),DecNed1+17,\"\"),IF(AND(YEAR(DecNed1+24)=KalendárnyRok,MONTH(DecNed1+24)=12),DecNed1+24,\"\"))","v":"2020-12-23"},{"$f":"IF(DAY(DecNed1)=1,IF(AND(YEAR(DecNed1+18)=KalendárnyRok,MONTH(DecNed1+18)=12),DecNed1+18,\"\"),IF(AND(YEAR(DecNed1+25)=KalendárnyRok,MONTH(DecNed1+25)=12),DecNed1+25,\"\"))","v":"2020-12-24"},{"$f":"IF(DAY(DecNed1)=1,IF(AND(YEAR(DecNed1+19)=KalendárnyRok,MONTH(DecNed1+19)=12),DecNed1+19,\"\"),IF(AND(YEAR(DecNed1+26)=KalendárnyRok,MONTH(DecNed1+26)=12),DecNed1+26,\"\"))","v":"2020-12-25"},{"$f":"IF(DAY(DecNed1)=1,IF(AND(YEAR(DecNed1+20)=KalendárnyRok,MONTH(DecNed1+20)=12),DecNed1+20,\"\"),IF(AND(YEAR(DecNed1+27)=KalendárnyRok,MONTH(DecNed1+27)=12),DecNed1+27,\"\"))","v":"2020-12-26"},{"$f":"IF(DAY(DecNed1)=1,IF(AND(YEAR(DecNed1+21)=KalendárnyRok,MONTH(DecNed1+21)=12),DecNed1+21,\"\"),IF(AND(YEAR(DecNed1+28)=KalendárnyRok,MONTH(DecNed1+28)=12),DecNed1+28,\"\"))","v":"2020-12-27"}]
[null,null,{"$f":"IF(DAY(NovNed1)=1,IF(AND(YEAR(NovNed1+22)=KalendárnyRok,MONTH(NovNed1+22)=11),NovNed1+22,\"\"),IF(AND(YEAR(NovNed1+29)=KalendárnyRok,MONTH(NovNed1+29)=11),NovNed1+29,\"\"))","v":"2020-11-23"},{"$f":"IF(DAY(NovNed1)=1,IF(AND(YEAR(NovNed1+23)=KalendárnyRok,MONTH(NovNed1+23)=11),NovNed1+23,\"\"),IF(AND(YEAR(NovNed1+30)=KalendárnyRok,MONTH(NovNed1+30)=11),NovNed1+30,\"\"))","v":"2020-11-24"},{"$f":"IF(DAY(NovNed1)=1,IF(AND(YEAR(NovNed1+24)=KalendárnyRok,MONTH(NovNed1+24)=11),NovNed1+24,\"\"),IF(AND(YEAR(NovNed1+31)=KalendárnyRok,MONTH(NovNed1+31)=11),NovNed1+31,\"\"))","v":"2020-11-25"},{"$f":"IF(DAY(NovNed1)=1,IF(AND(YEAR(NovNed1+25)=KalendárnyRok,MONTH(NovNed1+25)=11),NovNed1+25,\"\"),IF(AND(YEAR(NovNed1+32)=KalendárnyRok,MONTH(NovNed1+32)=11),NovNed1+32,\"\"))","v":"2020-11-26"},{"$f":"IF(DAY(NovNed1)=1,IF(AND(YEAR(NovNed1+26)=KalendárnyRok,MONTH(NovNed1+26)=11),NovNed1+26,\"\"),IF(AND(YEAR(NovNed1+33)=KalendárnyRok,MONTH(NovNed1+33)=11),NovNed1+33,\"\"))","v":"2020-11-27"},{"$f":"IF(DAY(NovNed1)=1,IF(AND(YEAR(NovNed1+27)=KalendárnyRok,MONTH(NovNed1+27)=11),NovNed1+27,\"\"),IF(AND(YEAR(NovNed1+34)=KalendárnyRok,MONTH(NovNed1+34)=11),NovNed1+34,\"\"))","v":"2020-11-28"},{"$f":"IF(DAY(NovNed1)=1,IF(AND(YEAR(NovNed1+28)=KalendárnyRok,MONTH(NovNed1+28)=11),NovNed1+28,\"\"),IF(AND(YEAR(NovNed1+35)=KalendárnyRok,MONTH(NovNed1+35)=11),NovNed1+35,\"\"))","v":"2020-11-29"},null,{"$f":"IF(DAY(DecNed1)=1,IF(AND(YEAR(DecNed1+22)=KalendárnyRok,MONTH(DecNed1+22)=12),DecNed1+22,\"\"),IF(AND(YEAR(DecNed1+29)=KalendárnyRok,MONTH(DecNed1+29)=12),DecNed1+29,\"\"))","v":"2020-12-28"},{"$f":"IF(DAY(DecNed1)=1,IF(AND(YEAR(DecNed1+23)=KalendárnyRok,MONTH(DecNed1+23)=12),DecNed1+23,\"\"),IF(AND(YEAR(DecNed1+30)=KalendárnyRok,MONTH(DecNed1+30)=12),DecNed1+30,\"\"))","v":"2020-12-29"},{"$f":"IF(DAY(DecNed1)=1,IF(AND(YEAR(DecNed1+24)=KalendárnyRok,MONTH(DecNed1+24)=12),DecNed1+24,\"\"),IF(AND(YEAR(DecNed1+31)=KalendárnyRok,MONTH(DecNed1+31)=12),DecNed1+31,\"\"))","v":"2020-12-30"},{"$f":"IF(DAY(DecNed1)=1,IF(AND(YEAR(DecNed1+25)=KalendárnyRok,MONTH(DecNed1+25)=12),DecNed1+25,\"\"),IF(AND(YEAR(DecNed1+32)=KalendárnyRok,MONTH(DecNed1+32)=12),DecNed1+32,\"\"))","v":"2020-12-31"},{"$f":"IF(DAY(DecNed1)=1,IF(AND(YEAR(DecNed1+26)=KalendárnyRok,MONTH(DecNed1+26)=12),DecNed1+26,\"\"),IF(AND(YEAR(DecNed1+33)=KalendárnyRok,MONTH(DecNed1+33)=12),DecNed1+33,\"\"))","v":""},{"$f":"IF(DAY(DecNed1)=1,IF(AND(YEAR(DecNed1+27)=KalendárnyRok,MONTH(DecNed1+27)=12),DecNed1+27,\"\"),IF(AND(YEAR(DecNed1+34)=KalendárnyRok,MONTH(DecNed1+34)=12),DecNed1+34,\"\"))","v":""},{"$f":"IF(DAY(DecNed1)=1,IF(AND(YEAR(DecNed1+28)=KalendárnyRok,MONTH(DecNed1+28)=12),DecNed1+28,\"\"),IF(AND(YEAR(DecNed1+35)=KalendárnyRok,MONTH(DecNed1+35)=12),DecNed1+35,\"\"))","v":""}]
[null,null,{"$f":"IF(DAY(NovNed1)=1,IF(AND(YEAR(NovNed1+29)=KalendárnyRok,MONTH(NovNed1+29)=11),NovNed1+29,\"\"),IF(AND(YEAR(NovNed1+36)=KalendárnyRok,MONTH(NovNed1+36)=11),NovNed1+36,\"\"))","v":"2020-11-30"},{"$f":"IF(DAY(NovNed1)=1,IF(AND(YEAR(NovNed1+30)=KalendárnyRok,MONTH(NovNed1+30)=11),NovNed1+30,\"\"),IF(AND(YEAR(NovNed1+37)=KalendárnyRok,MONTH(NovNed1+37)=11),NovNed1+37,\"\"))","v":""},{"$f":"IF(DAY(NovNed1)=1,IF(AND(YEAR(NovNed1+31)=KalendárnyRok,MONTH(NovNed1+31)=11),NovNed1+31,\"\"),IF(AND(YEAR(NovNed1+38)=KalendárnyRok,MONTH(NovNed1+38)=11),NovNed1+38,\"\"))","v":""},{"$f":"IF(DAY(NovNed1)=1,IF(AND(YEAR(NovNed1+32)=KalendárnyRok,MONTH(NovNed1+32)=11),NovNed1+32,\"\"),IF(AND(YEAR(NovNed1+39)=KalendárnyRok,MONTH(NovNed1+39)=11),NovNed1+39,\"\"))","v":""},{"$f":"IF(DAY(NovNed1)=1,IF(AND(YEAR(NovNed1+33)=KalendárnyRok,MONTH(NovNed1+33)=11),NovNed1+33,\"\"),IF(AND(YEAR(NovNed1+40)=KalendárnyRok,MONTH(NovNed1+40)=11),NovNed1+40,\"\"))","v":""},{"$f":"IF(DAY(NovNed1)=1,IF(AND(YEAR(NovNed1+34)=KalendárnyRok,MONTH(NovNed1+34)=11),NovNed1+34,\"\"),IF(AND(YEAR(NovNed1+41)=KalendárnyRok,MONTH(NovNed1+41)=11),NovNed1+41,\"\"))","v":""},{"$f":"IF(DAY(NovNed1)=1,IF(AND(YEAR(NovNed1+35)=KalendárnyRok,MONTH(NovNed1+35)=11),NovNed1+35,\"\"),IF(AND(YEAR(NovNed1+42)=KalendárnyRok,MONTH(NovNed1+42)=11),NovNed1+42,\"\"))","v":""},null,{"$f":"IF(DAY(DecNed1)=1,IF(AND(YEAR(DecNed1+29)=KalendárnyRok,MONTH(DecNed1+29)=12),DecNed1+29,\"\"),IF(AND(YEAR(DecNed1+36)=KalendárnyRok,MONTH(DecNed1+36)=12),DecNed1+36,\"\"))","v":""},{"$f":"IF(DAY(DecNed1)=1,IF(AND(YEAR(DecNed1+30)=KalendárnyRok,MONTH(DecNed1+30)=12),DecNed1+30,\"\"),IF(AND(YEAR(DecNed1+37)=KalendárnyRok,MONTH(DecNed1+37)=12),DecNed1+37,\"\"))","v":""},{"$f":"IF(DAY(DecNed1)=1,IF(AND(YEAR(DecNed1+31)=KalendárnyRok,MONTH(DecNed1+31)=12),DecNed1+31,\"\"),IF(AND(YEAR(DecNed1+38)=KalendárnyRok,MONTH(DecNed1+38)=12),DecNed1+38,\"\"))","v":""},{"$f":"IF(DAY(DecNed1)=1,IF(AND(YEAR(DecNed1+32)=KalendárnyRok,MONTH(DecNed1+32)=12),DecNed1+32,\"\"),IF(AND(YEAR(DecNed1+39)=KalendárnyRok,MONTH(DecNed1+39)=12),DecNed1+39,\"\"))","v":""},{"$f":"IF(DAY(DecNed1)=1,IF(AND(YEAR(DecNed1+33)=KalendárnyRok,MONTH(DecNed1+33)=12),DecNed1+33,\"\"),IF(AND(YEAR(DecNed1+40)=KalendárnyRok,MONTH(DecNed1+40)=12),DecNed1+40,\"\"))","v":""},{"$f":"IF(DAY(DecNed1)=1,IF(AND(YEAR(DecNed1+34)=KalendárnyRok,MONTH(DecNed1+34)=12),DecNed1+34,\"\"),IF(AND(YEAR(DecNed1+41)=KalendárnyRok,MONTH(DecNed1+41)=12),DecNed1+41,\"\"))","v":""},{"$f":"IF(DAY(DecNed1)=1,IF(AND(YEAR(DecNed1+35)=KalendárnyRok,MONTH(DecNed1+35)=12),DecNed1+35,\"\"),IF(AND(YEAR(DecNed1+42)=KalendárnyRok,MONTH(DecNed1+42)=12),DecNed1+42,\"\"))","v":""}]